{"text_format":"1","workbook":"xlsx","n_sheets":13,"sheets":["Datos de identificación 2024","Instrucciones de llenado","Servicios EE 2024","Población beneficiaria DIS 2024","Población beneficiaria AS 2024","1. Acciones académicas (DIS)","1. Acciones académicas (AS)","2. Atención complementaria(DIS)","2. Atención complementaria (AS)","3. Equipamiento específico(DIS)","3. Equipamiento específico (AS)","Gastos de Operación Local","Autorización 2024"],"not_rendered":{"charts":0,"images":1,"macros":1,"external_links":0,"defined_names":20,"comments":0,"pivot_tables":0},"unopened":[],"bounds":{"document_bytes":16777216,"sheet_cells":100000,"rows_first":2000,"rows_last":500,"rows_between":2000,"halvings":0,"cell_chars":16384,"cell_head_chars":4096},"cells_cut":0,"cells_raw":0,"read":"whole","date_system":"1900"}

{"sheet":"Datos de identificación 2024","index":0,"n_rows":16,"n_cols":7,"rows_kept":16,"cut":false,"hidden":false,"merged":[[5,0,5,7],[0,4,4,7],[0,0,4,2],[14,6,14,7],[15,0,15,1],[15,2,15,3],[15,6,15,7],[11,0,11,2],[11,3,11,7],[6,0,10,7],[13,1,13,6],[14,0,14,1],[14,2,14,3],[14,4,14,5]]}
[null,null,null,null,"Subsecretaría de Educación Básica\nDirección General de Desarrollo Curricular\nDirección de Fortalecimiento Curricular para la \nFormación Personal y Social en la Educación Básica\nEducación Especial"]
[]
[]
[]
[]
["\nANEXO 5\nINFORME TÉCNICO PEDAGÓGICO (ITP) 2024\nPrograma Fortalecimiento de los Servicios de Educación Especial (PFSEE)"]
["El siguiente formato tiene como objetivo recopilar la información trimestral relacionada con el apoyo a los servicios de Educación Especial que atienden a estudiantes con discapacidad y con aptitudes sobresalientes, y que fueron focalizados a través del Programa.\nÚnicamente se deberán de reportar las acciones realizadas con el recurso del PFSEE y en el periodo señalado.\n"]
[]
[]
[]
[]
["Entidad:",null,null,"DURANGO"]
[]
[null,"Señale con una \"X\" el trimestre que se reporta"]
["1er. Trimestre \n(enero a marzo)",null,"2° Trimestre \n(abril a junio)",null,"3er. Trimestre \n(julio a septiembre)",null,"4° Trimestre \n(octubre a diciembre)"]
[null,null,null,null,null,null,"X"]

{"sheet":"Instrucciones de llenado","index":1,"n_rows":79,"n_cols":20,"rows_kept":79,"cut":false,"hidden":false,"merged":[[78,0,79,22],[27,0,28,22],[48,0,49,22],[64,0,65,22],[67,0,68,22],[72,0,73,22],[75,0,76,22],[70,0,70,22],[19,0,20,22],[0,0,4,2],[0,16,4,22],[5,0,5,22],[9,0,10,22],[16,0,17,22]]}
[null,null,null,null,null,null,null,null,null,null,null,null,null,null,null,null,"Subsecretaría de Educación Básica\nDirección General de Desarrollo Curricular\nDirección de Fortalecimiento Curricular para la \nFormación Personal y Social en la Educación Básica\nEducación Especial"]
[]
[]
[]
[]
["Sírvase de las siguientes recomendaciones para el llenado de su formato ITP"]
[]
["Este archivo requiere guardarse como \"Libro de Excel habilitado para macros\"."]
[]
["1. Previamente, el formato está diseñado para imprimirse bajo los siguientes criterios, sin embargo, puede hacer las adecuaciones que considere para que las tablas se impriman completas hoja por hoja:"]
[]
[null,"o Formato horizontal"]
[null,"o Tamaño Carta"]
[null,"o Márgenes estrechos"]
[null,"o Escalado 40%"]
[]
["2. Una vez llenada la pestaña \"Servicios EE\", se pasan en automático los servicios que fueron beneficiados en cada tabla. Lo anterior, para facilitar el llenado a partir de este dato."]
[]
[]
["3. Para marcar el nivel de avance, se ofrecen tres tipos de listados, los cuales se enuncian a continuación. Favor de no escribir, únicamente seleccionar del desplegable:"]
[]
[null,"Realizada",null,"Materiales adquiridos, falta entrega"]
[null,"Pospuesta",null,"Materiales entregados"]
[null,"En desarrollo",null,"Pospuesta"]
[null,"Cancelada",null,"En desarrollo"]
[null,null,null,"Cancelada"]
[]
["4. En la pestaña correspondiente a \"Equipamiento específico (DIS)\", se despliegan las siguientes opciones. Favor de no escribir, únicamente seleccionar del desplegable:"]
[]
[null,"Material didáctico concreto",null,"Especializados en atención educativa","Para la identificación de BAP",null,null,null,null,"Software"]
[null,"Esquemas o mapas en relieve",null,"Especializados en discapacidad","Para la determinación de apoyos específicos ",null,null,null,null,"Hardware"]
[null,"Regletas y punzón",null,"Especializados en ciencia","Instrumentos de evaluación en línea",null,null,null,null,"Equipo de cómputo",null,null,null,null,null,null,null,null,null,"Para el desplazamiento"]
[null,"Caja aritmética",null,"Especializados en artes",null,null,null,null,null,"Cañón",null,null,null,null,null,null,null,null,null,"Para la orientación"]
[null," Ábaco Cramer",null,"En formatos accesibles",null,null,null,null,null,"Impresora",null,null,null,null,null,null,null,null,null,"Para la comunicación"]
[null,"Tableros de comunicación",null,"De literatura infantil","Braille",null,null,null,null,"Enmicadora"]
[null,"Regletas cuisenaire",null,"De literatura juvenil","Lectura fácil",null,null,null,null,"Tableta electrónica"]
[null,"Juegos de estrategia adaptados",null,"Otro (especifique)","Audiolibro",null,null,null,null,"Equipo para producciones audiovisuales de NNAJ"]
[null,"Material para ciencia",null,null,"Videos con animaciones",null,null,null,null,"Reproductor de audio"]
[null,"Equipo deportivo",null,null,"Videos con interpretación en LSM",null,null,null,null,"Reproductor de video"]
[null,"Instrumentos musicales",null,null,"Videos con closed caption",null,null,null,null,"Equipo de asistencia tecnológica"]
[null,"Paquetes con diversos materiales",null,null,"Tecnología de bajo costo",null,null,null,null,"Tecnología adaptada"]
[null,"Otro (especifique)",null,null,"Otro (especifique)",null,null,null,null,"Impresora en Braille"]
[null,null,null,null,null,null,null,null,null,"Máquina Perkins"]
[null,null,null,null,null,null,null,null,null,"Calculadora parlante"]
[null,null,null,null,null,null,null,null,null,"Magnificador de pantalla"]
[null,null,null,null,null,null,null,null,null,"Contratación de plataforma digital"]
[null,null,null,null,null,null,null,null,null,"Material para robótica"]
[null,null,null,null,null,null,null,null,null,"Otro (especifique)"]
["5. En la pestaña correspondiente a \"Equipamiento específico (AS)\", se despliegan las siguientes opciones. Favor de no escribir, únicamente seleccionar del desplegable:"]
[]
[null,"Juegos de estrategia",null,"Especializados en atención educativa",null,"Inteligencia",null,null,null,"Software"]
[null,"Material para ciencia",null,"Especializados en aptitudes sobresalientes",null,"Creatividad",null,null,null,"Hardware"]
[null,"Material para artes",null,"Especializados en ciencia",null,"Habilidades sociales",null,null,null,"Equipo de cómputo"]
[null,"Equipo deportivo",null,"Especializados en artes",null,"Habilidades emocionales",null,null,null,"Cañón"]
[null,"Instrumentos musicales",null,"De literatura infantil",null,"Insumos de papelería para reproducción",null,null,null,"Impresora"]
[null,"Paquetes con diversos materiales",null,"De literatura juvenil",null,"Instrumentos de evaluación en línea",null,null,null,"Tableta electrónica"]
[null,"Otro (especifique)",null,"Otro (especifique)",null,null,null,null,null,"Equipo para producciones audiovisuales realizado por NNAJ"]
[null,null,null,null,null,null,null,null,null,"Reproductor de audio"]
[null,null,null,null,null,null,null,null,null,"Reproductor de video"]
[null,null,null,null,null,null,null,null,null,"Material para robótica"]
[null,null,null,null,null,null,null,null,null,"Enmicadora"]
[null,null,null,null,null,null,null,null,null,"Contratación de plataforma digital"]
[null,null,null,null,null,null,null,null,null,"Otro (especifique)"]
[]
["6. La cantidad distribuida se refiere al total de material que adquirió y distribuyó, es decir 15 regletas, 10 equipos deportivos, etc. "]
[]
[]
["7. Si los materiales ya se adquirieron, pero no se han entregado, se solicita no reportar beneficiarios, sino hasta que hayan sido recibidos."]
[]
[]
["8. En el espacio para observaciones se solicita explicar el nivel de avance del propósito educativo, para cada actividad reportada."]
[]
["9. Si en su entidad no hay subsistemas, podrá eliminar una de las tablas correspondientes a las firmas de los Responsables de Educación Especial."]
[]
[]
["10. En caso de requerir mayor número de filas para reportar más actividades, podrá hacerlo siguiendo la ruta: Inicio / Celdas / Insertar filas. O bien, haciendo click derecho en el encabezado de la fila."]
[]
[]
["11. Solicitamos su apoyo para que este formato no sea desbloqueado, agregado o eliminado columnas, ni fórmulas."]

{"sheet":"Servicios EE 2024","index":2,"n_rows":33,"n_cols":19,"rows_kept":33,"cut":false,"hidden":false,"merged":[[33,0,33,18],[19,11,22,11],[20,12,22,12],[20,13,22,13],[18,0,18,9],[29,0,29,18],[30,0,30,18],[31,0,31,18],[32,0,32,18],[20,6,22,6],[20,7,22,7],[20,9,22,9],[27,0,27,18],[28,0,28,18],[20,16,22,16],[20,18,22,18],[10,4,12,4],[15,14,17,14],[15,15,17,15],[18,11,18,18],[20,14,22,14],[15,16,17,16],[15,18,17,18],[13,0,13,9],[13,11,13,18],[14,0,17,0],[14,11,17,11],[15,1,17,1],[15,3,17,3],[15,4,17,4],[15,5,17,5],[15,7,17,7],[15,6,17,6],[10,13,12,13],[10,14,12,14],[10,15,12,15],[10,16,12,16],[10,12,12,12],[15,9,17,9],[15,12,17,12],[15,13,17,13],[10,18,12,18],[0,0,4,2],[0,13,4,18],[8,0,8,9],[5,0,5,18],[10,6,12,6],[10,7,12,7],[8,11,8,18],[10,5,12,5],[9,0,12,0],[10,1,12,1],[10,9,12,9],[10,3,12,3],[7,0,7,9],[7,11,7,18],[9,11,12,11],[20,15,22,15],[19,0,22,0],[20,1,22,1],[20,3,22,3],[20,4,22,4],[20,5,22,5]]}
[null,null,null,null,null,null,null,null,null,null,null,null,null,"Subsecretaría de Educación Básica\nDirección General de Desarrollo Curricular\nDirección de Fortalecimiento Curricular para la \nFormación Personal y Social en la Educación Básica\nEducación Especial"]
[]
[]
[]
[]
["Señale el número de servicios de educación especial beneficiados en el trimestre que se reporta."]
[]
["Servicios beneficiados en el trimestre. Discapacidad",null,null,null,null,null,null,null,null,null,null,"Servicios beneficiados en el trimestre. Aptitudes sobresalientes"]
["Servicios de educación especial beneficiados con el componente 1. Acciones académicas para Agentes educativos en temas de discapacidad",null,null,null,null,null,null,null,null,null,null,"Servicios de educación especial beneficiados con el componente 1. Acciones académicas para Agentes educativos en temas de aptitudes sobresalientes"]
["Servicios beneficiados a través del PFSEE en el trimestre, componente 1","USAER","CAM Básico","CAM Laboral","CAPEP","CRIE","UOP","UAEBH","Otro","Total",null,"Servicios beneficiados a través del PFSEE en el trimestre, componente 1","USAER","CAPEP","CRIE","UOP","UAEBH","Otro","Total"]
[null,81,0,2,0,0,0,0,0,{"$f":"SUM(B11,C11,C13,D11,E11,F11,G11,H11,I11)","v":111},null,null,81,0,0,0,0,0,{"$f":"SUM(M11,N11,O11,P11,Q11,R11)","v":81}]
[null,null,"Con FpT",null,null,null,null,null,"(especifique)",null,null,null,null,null,null,null,null,"(especifique)"]
[null,null,28,null,null,null,null,null,"CENTRO DE INICICACIÓN A LA CIENCIA Y LA TECNOLOGÍA",null,null,null,null,null,null,null,null,"CENTRO DE INICICACIÓN A LA CIENCIA Y LA TECNOLOGÍA"]
["Servicios de educación especial beneficiados con el componente 2. Acciones de atención complementaria para estudiantes con discapacidad",null,null,null,null,null,null,null,null,null,null,"Servicios de educación especial beneficiados con el componente 2. Acciones de atención complementaria para estudiantes con aptitudes sobresalientes"]
["Servicios beneficiados a través del PFSEE en el trimestre, componente 2","USAER","CAM Básico","CAM Laboral","CAPEP","CRIE","UOP","UAEBH","Otro","Total",null,"Servicios beneficiados a través del PFSEE en el trimestre, componente 2","USAER","CAPEP","CRIE","UOP","UAEBH","Otro","Total"]
[null,0,0,2,0,0,0,0,0,{"$f":"SUM(B16,C16,C18,D16,E16,F16,G16,H16,I16)","v":30},null,null,65,0,0,0,0,0,{"$f":"SUM(M16,N16,O16,P16,Q16,R16)","v":65}]
[null,null,"Con FpT",null,null,null,null,null,"(especifique)",null,null,null,null,null,null,null,null,"(especifique)"]
[null,null,28,null,null,null,null,null,"CENTRO DE INICICACIÓN A LA CIENCIA Y LA TECNOLOGÍA",null,null,null,null,null,null,null,null,"CENTRO DE INICICACIÓN A LA CIENCIA Y LA TECNOLOGÍA"]
["Servicios de educación especial beneficiados con el componente 3. Equipamiento específico en beneficio de estudiantes con discapacidad",null,null,null,null,null,null,null,null,null,null,"Servicios de educación especial beneficiados con el componente 3. Equipamiento específico en beneficio de estudiantes con aptitudes sobresalientes"]
["Servicios beneficiados a través del PFSEE en el trimestre, componente 3","USAER","CAM Básico","CAM Laboral","CAPEP","CRIE","UOP","UAEBH","Otro","Total",null,"Servicios beneficiados a través del PFSEE en el trimestre, componente 3","USAER","CAPEP","CRIE","UOP","UAEBH","Otro","Total"]
[null,81,0,2,0,0,0,0,0,{"$f":"SUM(B21,C21,C23,D21,E21,F21,G21,H21,I21)","v":111},null,null,81,0,0,0,0,0,{"$f":"SUM(M21,N21,O21,P21,Q21,R21)","v":81}]
[null,null,"Con FpT",null,null,null,null,null,"(especifique)",null,null,null,null,null,null,null,null,"(especifique)"]
[null,null,28,null,null,null,null,null,"CENTRO DE INICICACIÓN A LA CIENCIA Y LA TECNOLOGÍA",null,null,null,null,null,null,null,null,"CENTRO DE INICICACIÓN A LA CIENCIA Y LA TECNOLOGÍA"]
[]
["*Con FpT: Con Formación para el Trabajo"]
[]
["Para el llenado de esta hoja de Excel considerar los siguientes puntos:"]
["a) Reportar únicamente los que se han visto beneficiados por el PFSEE cada trimestre, por componente."]
["b) En \"CAM Básico\" se reportan los centros que ofrecen educación básica, que no cuentan con formación para el trabajo."]
["c) En \"Con FpT\" se reportan los CAM Básicos que además de la educación básica, cuentan con talleres de formación para el trabajo."]
["d) En \"CAM Laboral\" se reportan únicamente los centros dedicados a la formación laboral o para el trabajo."]
["e) Cuidar de no repetir los datos, pues entre lo reportado en CAM Básico, Con FpT y CAM Laboral, debe de sumar la totalidad de los CAM en su entidad."]
["f) Si en su entidad cuenta con otro tipo de servicio no considerado en la tabla, reportar la cantidad en \"Otro\" y anotar su nombre en el apartado \"(especifique)\"."]

{"sheet":"Población beneficiaria DIS 2024","index":3,"n_rows":76,"n_cols":36,"rows_kept":76,"cut":false,"hidden":false,"merged":[[69,31,70,33],[5,0,5,35],[60,29,60,35],[61,29,61,31],[61,33,61,35],[64,29,64,35],[65,29,65,31],[65,33,65,35],[53,25,53,27],[53,29,53,35],[54,29,54,31],[54,33,54,35],[57,29,57,31],[57,33,57,35],[47,31,48,33],[51,0,51,35],[52,0,54,0],[52,1,52,15],[52,16,52,18],[52,19,52,27],[53,1,53,3],[53,4,53,6],[53,7,53,9],[53,10,53,12],[53,13,53,15],[53,16,54,16],[53,17,54,17],[53,18,54,18],[53,19,53,21],[53,22,53,24],[38,29,38,35],[39,29,39,31],[39,33,39,35],[42,29,42,35],[43,29,43,31],[43,33,43,35],[31,29,31,35],[32,29,32,31],[32,33,32,35],[35,29,35,31],[35,33,35,35],[29,0,29,35],[30,0,32,0],[30,1,30,15],[30,16,30,18],[30,19,30,27],[31,1,31,3],[31,4,31,6],[31,7,31,9],[31,10,31,12],[31,13,31,15],[31,16,32,16],[31,17,32,17],[31,18,32,18],[31,19,31,21],[31,22,31,24],[31,25,31,27],[20,29,20,35],[21,29,21,31],[21,33,21,35],[25,31,26,33],[7,0,7,35],[13,29,13,31],[13,33,13,35],[16,29,16,35],[17,29,17,31],[17,33,17,35],[9,18,10,18],[9,19,9,21],[9,22,9,24],[9,25,9,27],[9,29,9,35],[10,29,10,31],[0,29,4,35],[0,0,4,4],[8,0,10,0],[8,1,8,15],[8,16,8,18],[8,19,8,27],[9,1,9,3],[9,4,9,6],[10,33,10,35],[9,7,9,9],[9,10,9,12],[9,13,9,15],[9,16,10,16],[9,17,10,17]]}
[null,null,null,null,null,null,null,null,null,null,null,null,null,null,null,null,null,null,null,null,null,null,null,null,null,null,null,null,null,"Subsecretaría de Educación Básica\nDirección General de Desarrollo Curricular\nDirección de Fortalecimiento Curricular para la \nFormación Personal y Social en la Educación Básica\nEducación Especial"]
[]
[]
[]
[]
["Información cuantitativa respecto a la población con discapacidad que atienden los servicios de educación especial que fueron focalizados y beneficiados en este trimestre en su entidad, por sexo y tipo de condición:"]
[]
["Población con discapacidad que se ha visto beneficiada en el trimestre por acciones a los servicios de educación especial en el Componente 1"]
["Condición","Beneficiarias/os por condición y por SEE",null,null,null,null,null,null,null,null,null,null,null,null,null,null,"Población total beneficiaria",null,null,"De la población total reportada por condición, especifique si se trata de alguna de las siguientes poblaciones"]
[null,"USAER",null,null,"CAM básico",null,null,"CAM básico con FpT",null,null,"CAM laboral",null,null,"Otro",null,null,"M","H","TOTAL","Población indígena",null,null,"Población afrodescendiente",null,null,"Población migrante",null,null,null,"Estudiantes beneficiados con discapacidad"]
[null,"M","H","TOTAL","M","H","TOTAL","M","H","TOTAL","M","H","TOTAL","M","H","TOTAL",null,null,null,"M","H","TOTAL","M","H","TOTAL","M","H","TOTAL",null,"CAPEP",null,null,null,"UAEBH"]
["Ceguera",7,13,{"$f":"SUM(B12:C12)","v":20},0,0,{"$f":"SUM(E12:F12)","v":0},5,5,{"$f":"SUM(H12:I12)","v":10},0,1,{"$f":"SUM(K12:L12)","v":1},0,0,{"$f":"SUM(N12:O12)","v":0},{"$f":"SUM(B12,E12,H12,K12,N12)","v":12},{"$f":"SUM(C12,F12,I12,L12,O12)","v":19},{"$f":"SUM(Q12,R12)","v":31},0,0,{"$f":"SUM(T12,U12)","v":0},0,0,{"$f":"SUM(W12,X12)","v":0},0,0,{"$f":"SUM(Z12,AA12)","v":0},null,"M","H","TOTAL",null,"M","H","TOTAL"]
["Baja Visión",33,60,{"$f":"SUM(B13:C13)","v":93},0,0,{"$f":"SUM(E13:F13)","v":0},3,2,{"$f":"SUM(H13:I13)","v":5},0,0,{"$f":"SUM(K13:L13)","v":0},0,0,{"$f":"SUM(N13:O13)","v":0},{"$f":"SUM(B13,E13,H13,K13,N13)","v":36},{"$f":"SUM(C13,F13,I13,L13,O13)","v":62},{"$f":"SUM(Q13,R13)","v":98},0,0,{"$f":"SUM(T13,U13)","v":0},0,0,{"$f":"SUM(W13,X13)","v":0},0,0,{"$f":"SUM(Z13,AA13)","v":0},null,0,0,{"$f":"SUM(AD13,AE13)","v":0},null,0,0,{"$f":"SUM(AH13,AI13)","v":0}]
["Sordera",8,13,21,0,0,0,5,7,12,1,1,2,0,0,0,14,21,35,0,0,0,0,0,0,0,0,0,null,"CRIE",null,null,null,"UOP"]
["Hipoacusia",51,59,110,0,0,0,11,7,18,0,0,0,0,0,0,62,66,128,0,0,0,0,0,0,0,0,0,null,"M","H","TOTAL",null,"M","H","TOTAL"]
["Sordoceguera",0,0,0,0,0,0,0,0,0,0,0,0,0,0,0,0,0,0,0,0,0,0,0,0,0,0,0,null,0,0,{"$f":"SUM(AD16,AE16)","v":0},null,0,0,{"$f":"SUM(AH16,AI16)","v":0}]
["Motriz",63,93,156,0,0,0,44,63,107,1,2,3,0,0,0,108,158,266,0,0,0,0,0,0,0,0,0,null,"Personal docente y/o directivos beneficiados"]
["Intelectual",265,363,628,0,0,0,355,481,836,47,48,95,0,0,0,667,892,1559,0,0,0,0,0,0,0,0,0,null,"CRIE",null,null,null,"UOP"]
["Psicosocial",3,4,7,0,0,0,6,5,11,0,2,2,0,0,0,9,11,20,0,0,0,0,0,0,0,0,0,null,"M","H","TOTAL",null,"M","H","TOTAL"]
["Espectro autista",62,390,452,0,0,0,50,161,211,1,5,6,0,0,0,113,556,669,0,0,0,0,0,0,0,0,0,null,0,0,{"$f":"SUM(AD20,AE20)","v":0},null,0,0,{"$f":"SUM(AH20,AI20)","v":0}]
["Múltiple",32,21,53,0,0,0,80,109,189,4,4,8,0,0,0,116,134,250,0,0,0,0,0,0,0,0,0,null,"Familias y/o público en general beneficiados"]
["TDA TDA-H",133,715,848,0,0,0,7,29,36,0,4,4,0,0,0,140,748,888,0,0,0,0,0,0,0,0,0,null,"CRIE",null,null,null,"UOP"]
["Totales",{"$f":"SUM(B12:B22)","v":657},{"$f":"SUM(C12:C22)","v":1731},{"$f":"SUM(B23:C23)","v":2388},{"$f":"SUM(E12:E22)","v":0},{"$f":"SUM(F12:F22)","v":0},{"$f":"SUM(E23,F23)","v":0},{"$f":"SUM(H12:H22)","v":566},{"$f":"SUM(I12:I22)","v":869},{"$f":"SUM(H23,I23)","v":1435},{"$f":"SUM(K12:K22)","v":54},{"$f":"SUM(L12:L22)","v":67},{"$f":"SUM(K23:L23)","v":121},{"$f":"SUM(N12:N22)","v":0},{"$f":"SUM(O12:O22)","v":0},{"$f":"SUM(N23:O23)","v":0},{"$f":"SUM(B23,E23,H23,K23,N23)","v":1277},{"$f":"SUM(C23,F23,I23,L23,O23)","v":2667},3944,{"$f":"SUM(T12:T22)","v":0},{"$f":"SUM(U12:U22)","v":0},0,{"$f":"SUM(W12:W22)","v":0},{"$f":"SUM(X12:X22)","v":0},0,{"$f":"SUM(Z12:Z22)","v":0},{"$f":"SUM(AA12:AA22)","v":0},0,null,"M","H","TOTAL",null,"M","H","TOTAL"]
[null,null,null,null,null,null,null,null,null,null,null,null,null,null,null,null,null,null,null,null,null,null,null,null,null,null,null,null,null,0,0,{"$f":"SUM(AD24,AE24)","v":0},null,0,0,{"$f":"SUM(AH24,AI24)","v":0}]
[]
[null,null,null,null,null,null,null,null,null,null,null,null,null,null,null,null,null,null,null,null,null,null,null,null,null,null,null,null,null,null,null,"Total de estudiantes con discapacidad beneficiados"]
[]
[null,null,null,null,null,null,null,null,null,null,null,null,null,null,null,null,null,null,null,null,null,null,null,null,null,null,null,null,null,null,null,"M","H","Total"]
[null,null,null,null,null,null,null,null,null,null,null,null,null,null,null,null,null,null,null,null,null,null,null,null,null,null,null,null,null,null,null,{"$f":"SUM(Q23,AD13,AH13,AD16,AH16)","v":1277},{"$f":"SUM(R23,AE13,AI13,AE16,AI16)","v":2667},{"$f":"SUM(AF29,AG29)","v":3944}]
["Población con discapacidad que se ha visto beneficiada en el trimestre por acciones a los servicios de educación especial en el Componente 2"]
["Condición","Beneficiarias/os por condición y por SEE",null,null,null,null,null,null,null,null,null,null,null,null,null,null,"Población total beneficiaria",null,null,"De la población total reportada por condición, especifique si se trata de alguna de las siguientes poblaciones"]
[null,"USAER",null,null,"CAM básico",null,null,"CAM básico con FpT",null,null,"CAM laboral",null,null,"Otro",null,null,"M","H","TOTAL","Población indígena",null,null,"Población afrodescendiente",null,null,"Población migrante",null,null,null,"Estudiantes beneficiados discapacidad"]
[null,"M","H","TOTAL","M","H","TOTAL","M","H","TOTAL","M","H","TOTAL","M","H","TOTAL",null,null,null,"M","H","TOTAL","M","H","TOTAL","M","H","TOTAL",null,"CAPEP",null,null,null,"UAEBH"]
["Ceguera",0,0,{"$f":"SUM(B34:C34)","v":0},0,0,{"$f":"SUM(E34:F34)","v":0},5,5,{"$f":"SUM(H34:I34)","v":10},0,1,{"$f":"SUM(K34:L34)","v":1},0,0,{"$f":"SUM(N34:O34)","v":0},{"$f":"SUM(B34,E34,H34,K34,N34)","v":5},{"$f":"SUM(C34,F34,I34,L34,O34)","v":6},{"$f":"SUM(Q34,R34)","v":11},0,0,{"$f":"SUM(T34,U34)","v":0},0,0,{"$f":"SUM(W34,X34)","v":0},0,0,{"$f":"SUM(Z34,AA34)","v":0},null,"M","H","TOTAL",null,"M","H","TOTAL"]
["Baja Visión",0,0,{"$f":"SUM(B35:C35)","v":0},0,0,{"$f":"SUM(E35:F35)","v":0},3,2,{"$f":"SUM(H35:I35)","v":5},0,0,{"$f":"SUM(K35:L35)","v":0},0,0,{"$f":"SUM(N35:O35)","v":0},{"$f":"SUM(B35,E35,H35,K35,N35)","v":3},{"$f":"SUM(C35,F35,I35,L35,O35)","v":2},{"$f":"SUM(Q35,R35)","v":5},0,0,{"$f":"SUM(T35,U35)","v":0},0,0,{"$f":"SUM(W35,X35)","v":0},0,0,{"$f":"SUM(Z35,AA35)","v":0},null,0,0,{"$f":"SUM(AD35,AE35)","v":0},null,0,0,{"$f":"SUM(AH35,AI35)","v":0}]
["Sordera",0,0,0,0,0,0,5,7,12,1,1,2,0,0,0,6,8,14,0,0,0,0,0,0,0,0,0,null,"CRIE",null,null,null,"UOP"]
["Hipoacusia",0,0,0,0,0,0,11,7,18,0,0,0,0,0,0,11,7,18,0,0,0,0,0,0,0,0,0,null,"M","H","TOTAL",null,"M","H","TOTAL"]
["Sordoceguera",0,0,0,0,0,0,0,0,0,0,0,0,0,0,0,0,0,0,0,0,0,0,0,0,0,0,0,null,0,0,{"$f":"SUM(AD38,AE38)","v":0},null,0,0,{"$f":"SUM(AH38,AI38)","v":0}]
["Motriz",0,0,0,0,0,0,44,63,107,1,2,3,0,0,0,45,65,110,0,0,0,0,0,0,0,0,0,null,"Personal docente y/o directivos beneficiados"]
["Intelectual",0,0,0,0,0,0,355,481,836,47,48,95,0,0,0,402,529,931,0,0,0,0,0,0,0,0,0,null,"CRIE",null,null,null,"UOP"]
["Psicosocial",0,0,0,0,0,0,6,5,11,0,2,2,0,0,0,6,7,13,0,0,0,0,0,0,0,0,0,null,"M","H","TOTAL",null,"M","H","TOTAL"]
["Espectro autista",0,0,0,0,0,0,50,161,211,1,5,6,0,0,0,51,166,217,0,0,0,0,0,0,0,0,0,null,0,0,{"$f":"SUM(AD42,AE42)","v":0},null,0,0,{"$f":"SUM(AH42,AI42)","v":0}]
["Múltiple",0,0,0,0,0,0,80,109,189,4,4,8,0,0,0,84,113,197,0,0,0,0,0,0,0,0,0,null,"Familias y/o público en general beneficiados"]
["TDA TDA-H",0,0,0,0,0,0,7,29,36,0,4,4,0,0,0,7,33,40,0,0,0,0,0,0,0,0,0,null,"CRIE",null,null,null,"UOP"]
["Totales",{"$f":"SUM(B34:B44)","v":0},{"$f":"SUM(C34:C44)","v":0},{"$f":"SUM(B45:C45)","v":0},{"$f":"SUM(E34:E44)","v":0},{"$f":"SUM(F34:F44)","v":0},{"$f":"SUM(E45,F45)","v":0},{"$f":"SUM(H34:H44)","v":566},{"$f":"SUM(I34:I44)","v":869},{"$f":"SUM(H45,I45)","v":1435},{"$f":"SUM(K34:K44)","v":54},{"$f":"SUM(L34:L44)","v":67},{"$f":"SUM(K45:L45)","v":121},{"$f":"SUM(N34:N44)","v":0},{"$f":"SUM(O34:O44)","v":0},{"$f":"SUM(N45:O45)","v":0},{"$f":"SUM(B45,E45,H45,K45,N45)","v":620},{"$f":"SUM(C45,F45,I45,L45,O45)","v":936},1556,{"$f":"SUM(T34:T44)","v":0},{"$f":"SUM(U34:U44)","v":0},0,{"$f":"SUM(W34:W44)","v":0},{"$f":"SUM(X34:X44)","v":0},0,{"$f":"SUM(Z34:Z44)","v":0},{"$f":"SUM(AA34:AA44)","v":0},0,null,"M","H","TOTAL",null,"M","H","TOTAL"]
[null,null,null,null,null,null,null,null,null,null,null,null,null,null,null,null,null,null,null,null,null,null,null,null,null,null,null,null,null,0,0,{"$f":"SUM(AD46,AE46)","v":0},null,0,0,{"$f":"SUM(AH46,AI46)","v":0}]
[]
[null,null,null,null,null,null,null,null,null,null,null,null,null,null,null,null,null,null,null,null,null,null,null,null,null,null,null,null,null,null,null,"Total de estudiantes con discapacidad beneficiados"]
[]
[null,null,null,null,null,null,null,null,null,null,null,null,null,null,null,null,null,null,null,null,null,null,null,null,null,null,null,null,null,null,null,"M","H","Total"]
[null,null,null,null,null,null,null,null,null,null,null,null,null,null,null,null,null,null,null,null,null,null,null,null,null,null,null,null,null,null,null,{"$f":"SUM(Q45,AD35,AH35,AD38,AH38)","v":620},{"$f":"SUM(R45,AE35,AI35,AE38,AI38)","v":936},{"$f":"SUM(AF51,AG51)","v":1556}]
["Población con discapacidad que se ha visto beneficiada en el trimestre por acciones a los servicios de educación especial en el Componente 3"]
["Condición","Beneficiarias/os por condición y por SEE",null,null,null,null,null,null,null,null,null,null,null,null,null,null,"Población total beneficiaria",null,null,"De la población total reportada por condición, especifique si se trata de alguna de las siguientes poblaciones"]
[null,"USAER",null,null,"CAM básico",null,null,"CAM básico con FpT",null,null,"CAM laboral",null,null,"Otro",null,null,"M","H","TOTAL","Población indígena",null,null,"Población afrodescendiente",null,null,"Población migrante",null,null,null,"Estudiantes beneficiados discapacidad"]
[null,"M","H","TOTAL","M","H","TOTAL","M","H","TOTAL","M","H","TOTAL","M","H","TOTAL",null,null,null,"M","H","TOTAL","M","H","TOTAL","M","H","TOTAL",null,"CAPEP",null,null,null,"UAEBH"]
["Ceguera",7,13,{"$f":"SUM(B56:C56)","v":20},0,0,{"$f":"SUM(E56:F56)","v":0},5,5,{"$f":"SUM(H56:I56)","v":10},0,1,{"$f":"SUM(K56:L56)","v":1},0,0,{"$f":"SUM(N56:O56)","v":0},{"$f":"SUM(B56,E56,H56,K56,N56)","v":12},{"$f":"SUM(C56,F56,I56,L56,O56)","v":19},{"$f":"SUM(Q56,R56)","v":31},0,0,{"$f":"SUM(T56,U56)","v":0},0,0,{"$f":"SUM(W56,X56)","v":0},0,0,{"$f":"SUM(Z56,AA56)","v":0},null,"M","H","TOTAL",null,"M","H","TOTAL"]
["Baja Visión",33,60,{"$f":"SUM(B57:C57)","v":93},0,0,{"$f":"SUM(E57:F57)","v":0},3,2,{"$f":"SUM(H57:I57)","v":5},0,0,{"$f":"SUM(K57:L57)","v":0},0,0,{"$f":"SUM(N57:O57)","v":0},{"$f":"SUM(B57,E57,H57,K57,N57)","v":36},{"$f":"SUM(C57,F57,I57,L57,O57)","v":62},{"$f":"SUM(Q57,R57)","v":98},0,0,{"$f":"SUM(T57,U57)","v":0},0,0,{"$f":"SUM(W57,X57)","v":0},0,0,{"$f":"SUM(Z57,AA57)","v":0},null,0,0,{"$f":"SUM(AD57,AE57)","v":0},null,0,0,{"$f":"SUM(AH57,AI57)","v":0}]
["Sordera",8,13,21,0,0,0,5,7,12,1,1,2,0,0,0,14,21,35,0,0,0,0,0,0,0,0,0,null,"CRIE",null,null,null,"UOP"]
["Hipoacusia",51,59,110,0,0,0,11,7,18,0,0,0,0,0,0,62,66,128,0,0,0,0,0,0,0,0,0,null,"M","H","TOTAL",null,"M","H","TOTAL"]
["Sordoceguera",0,0,0,0,0,0,0,0,0,0,0,0,0,0,0,0,0,0,0,0,0,0,0,0,0,0,0,null,0,0,{"$f":"SUM(AD60,AE60)","v":0},null,0,0,{"$f":"SUM(AH60,AI60)","v":0}]
["Motriz",63,93,156,0,0,0,44,63,107,1,2,3,0,0,0,108,158,266,0,0,0,0,0,0,0,0,0,null,"Personal docente y/o directivos beneficiados"]
["Intelectual",265,363,628,0,0,0,355,481,836,47,48,95,0,0,0,667,892,1559,0,0,0,0,0,0,0,0,0,null,"CRIE",null,null,null,"UOP"]
["Psicosocial",3,4,7,0,0,0,6,5,11,0,2,2,0,0,0,9,11,20,0,0,0,0,0,0,0,0,0,null,"M","H","TOTAL",null,"M","H","TOTAL"]
["Espectro autista",62,390,452,0,0,0,50,161,211,1,5,6,0,0,0,113,556,669,0,0,0,0,0,0,0,0,0,null,0,0,{"$f":"SUM(AD64,AE64)","v":0},null,0,0,{"$f":"SUM(AH64,AI64)","v":0}]
["Múltiple",32,21,53,0,0,0,80,109,189,4,4,8,0,0,0,116,134,250,0,0,0,0,0,0,0,0,0,null,"Familias y/o público en general beneficiados"]
["TDA TDA-H",133,715,848,0,0,0,7,29,36,0,4,4,0,0,0,140,748,888,0,0,0,0,0,0,0,0,0,null,"CRIE",null,null,null,"UOP"]
["Totales",{"$f":"SUM(B56:B66)","v":657},{"$f":"SUM(C56:C66)","v":1731},{"$f":"SUM(B67:C67)","v":2388},{"$f":"SUM(E56:E66)","v":0},{"$f":"SUM(F56:F66)","v":0},{"$f":"SUM(E67,F67)","v":0},{"$f":"SUM(H56:H66)","v":566},{"$f":"SUM(I56:I66)","v":869},{"$f":"SUM(H67,I67)","v":1435},{"$f":"SUM(K56:K66)","v":54},{"$f":"SUM(L56:L66)","v":67},{"$f":"SUM(K67:L67)","v":121},{"$f":"SUM(N56:N66)","v":0},{"$f":"SUM(O56:O66)","v":0},{"$f":"SUM(N67:O67)","v":0},{"$f":"SUM(B67,E67,H67,K67,N67)","v":1277},{"$f":"SUM(C67,F67,I67,L67,O67)","v":2667},3944,{"$f":"SUM(T56:T66)","v":0},{"$f":"SUM(U56:U66)","v":0},0,{"$f":"SUM(W56:W66)","v":0},{"$f":"SUM(X56:X66)","v":0},0,{"$f":"SUM(Z56:Z66)","v":0},{"$f":"SUM(AA56:AA66)","v":0},0,null,"M","H","TOTAL",null,"M","H","TOTAL"]
[null,null,null,null,null,null,null,null,null,null,null,null,null,null,null,null,null,null,null,null,null,null,null,null,null,null,null,null,null,0,0,{"$f":"SUM(AD68,AE68)","v":0},null,0,0,{"$f":"SUM(AH68,AI68)","v":0}]
[]
[null,null,null,null,null,null,null,null,null,null,null,null,null,null,null,null,null,null,null,null,null,null,null,null,null,null,null,null,null,null,null,"Total de estudiantes con discapacidad beneficiados"]
[]
[null,null,null,null,null,null,null,null,null,null,null,null,null,null,null,null,null,null,null,null,null,null,null,null,null,null,null,null,null,null,null,"M","H","Total"]
[null,null,null,null,null,null,null,null,null,null,null,null,null,null,null,null,null,null,null,null,null,null,null,null,null,null,null,null,null,null,null,{"$f":"SUM(Q67,AD57,AH57,AD60,AH60)","v":1277},{"$f":"SUM(R67,AE57,AI57,AE60,AI60)","v":2667},{"$f":"SUM(AF73,AG73)","v":3944}]
[]
["TDA: Trastorno por Déficit de Atención"]
["TDA-H: Trastorno por Déficit de Atención e Hiperactividad"]

{"sheet":"Población beneficiaria AS 2024","index":4,"n_rows":68,"n_cols":27,"rows_kept":68,"cut":false,"hidden":false,"merged":[[62,15,63,17],[7,0,7,27],[27,0,27,27],[47,0,47,27],[56,20,56,26],[57,20,57,22],[57,24,57,26],[60,20,60,26],[61,20,61,22],[61,24,61,26],[49,20,49,26],[50,20,50,22],[50,24,50,26],[53,20,53,22],[53,24,53,26],[48,0,50,0],[48,1,48,6],[48,7,48,9],[48,10,48,18],[49,1,49,3],[49,4,49,6],[49,7,50,7],[49,8,50,8],[49,9,50,9],[49,10,49,12],[49,13,49,15],[49,16,49,18],[40,20,40,26],[41,20,41,22],[41,24,41,26],[42,15,43,17],[33,20,33,22],[33,24,33,26],[36,20,36,26],[37,20,37,22],[37,24,37,26],[22,15,23,17],[28,0,30,0],[28,1,28,6],[28,7,28,9],[28,10,28,18],[29,7,30,7],[29,8,30,8],[29,9,30,9],[29,10,29,12],[29,13,29,15],[29,16,29,18],[29,1,29,3],[29,4,29,6],[29,20,29,26],[30,20,30,22],[30,24,30,26],[17,20,17,22],[17,24,17,26],[20,20,20,26],[21,20,21,22],[21,24,21,26],[10,20,10,22],[10,24,10,26],[13,20,13,22],[13,24,13,26],[16,20,16,26],[0,21,4,27],[5,0,5,27],[8,0,10,0],[8,1,8,6],[8,7,8,9],[8,10,8,18],[9,1,9,3],[9,4,9,6],[9,7,10,7],[9,8,10,8],[9,9,10,9],[9,10,9,12],[9,13,9,15],[9,16,9,18],[9,20,9,26],[0,0,4,0]]}
[null,null,null,null,null,null,null,null,null,null,null,null,null,null,null,null,null,null,null,null,null,"Subsecretaría de Educación Básica\nDirección General de Desarrollo Curricular\nDirección de Fortalecimiento Curricular para la \nFormación Personal y Social en la Educación Básica\nEducación Especial"]
[]
[]
[]
[]
["Información cuantitativa respecto a la población con aptitudes sobresalientes que atienden los servicios de educación especial que fueron focalizados y beneficiados en este trimestre en su entidad, por sexo y tipo de condición:"]
[]
["Población con aptitudes sobresalientes que se ha visto beneficiada en el trimestre por acciones a los servicios de educación especial en el Componente 1"]
["Condición","Beneficiarias/os por condición y por SEE",null,null,null,null,null,"Población total beneficiaria",null,null,"De la población total reportada por condición, especifique si se trata de alguna de las siguientes poblaciones"]
[null,"USAER",null,null,"Otro",null,null,"M","H","TOTAL","Población indígena",null,null,"Población afrodescendiente",null,null,"Población migrante",null,null,null,"Estudiantes beneficiados aptitudes sobresalientes"]
[null,"M","H","TOTAL","M","H","TOTAL",null,null,null,"M","H","TOTAL","M","H","TOTAL","M","H","TOTAL",null,"CAPEP",null,null,null,"UAEBH"]
["AS Intelectual",0,0,{"$f":"SUM(B12:C12)","v":0},0,0,{"$f":"SUM(E12:F12)","v":0},{"$f":"SUM(B12,E12)","v":0},{"$f":"SUM(C12,F12)","v":0},{"$f":"SUM(H12:I12)","v":0},0,0,{"$f":"SUM(K12:L12)","v":0},0,0,{"$f":"SUM(N12:O12)","v":0},0,0,{"$f":"SUM(Q12:R12)","v":0},null,"M","H","TOTAL",null,"M","H","TOTAL"]
["AS Creativa",0,0,0,0,0,0,{"$f":"SUM(B13,E13)","v":0},{"$f":"SUM(C13,F13)","v":0},{"$f":"SUM(H13:I13)","v":0},0,0,0,0,0,0,0,0,0,null,0,0,{"$f":"SUM(U13,V13)","v":0},null,0,0,{"$f":"SUM(Y13,Z13)","v":0}]
["AS Artística",0,0,0,0,0,0,0,0,0,0,0,0,0,0,0,0,0,0,null,"CRIE",null,null,null,"UOP"]
["AS Psicomotriz",0,0,0,0,0,0,0,0,0,0,0,0,0,0,0,0,0,0,null,"M","H","TOTAL",null,"M","H","TOTAL"]
["AS Socioafectiva",0,0,0,0,0,0,0,0,0,0,0,0,0,0,0,0,0,0,null,0,0,{"$f":"SUM(U16,V16)","v":0},null,0,0,{"$f":"SUM(Y16,Z16)","v":0}]
["Totales",{"$f":"SUM(B12:B16)","v":0},{"$f":"SUM(C12:C16)","v":0},0,{"$f":"SUM(E12:E16)","v":0},{"$f":"SUM(F12:F16)","v":0},0,{"$f":"SUM(H12:H16)","v":0},{"$f":"SUM(I12:I16)","v":0},0,{"$f":"SUM(K12:K16)","v":0},{"$f":"SUM(L12:L16)","v":0},0,{"$f":"SUM(N12:N16)","v":0},{"$f":"SUM(O12:O16)","v":0},0,{"$f":"SUM(Q12:Q16)","v":0},{"$f":"SUM(R12:R16)","v":0},0,null,"Personal docente y/o directivos beneficiados"]
[null,null,null,null,null,null,null,null,null,null,null,null,null,null,null,null,null,null,null,null,"CRIE",null,null,null,"UOP"]
[null,null,null,null,null,null,null,null,null,null,null,null,null,null,null,null,null,null,null,null,"M","H","TOTAL",null,"M","H","TOTAL"]
[null,null,null,null,null,null,null,null,null,null,null,null,null,null,null,null,null,null,null,null,0,0,{"$f":"SUM(U20,V20)","v":0},null,0,0,{"$f":"SUM(Y20,Z20)","v":0}]
[null,null,null,null,null,null,null,null,null,null,null,null,null,null,null,null,null,null,null,null,"Familias y/o público en general beneficiados"]
[null,null,null,null,null,null,null,null,null,null,null,null,null,null,null,null,null,null,null,null,"CRIE",null,null,null,"UOP"]
[null,null,null,null,null,null,null,null,null,null,null,null,null,null,null,"Total de estudiantes con aptitudes sobresalientes beneficiados",null,null,null,null,"M","H","TOTAL",null,"M","H","TOTAL"]
[null,null,null,null,null,null,null,null,null,null,null,null,null,null,null,null,null,null,null,null,0,0,{"$f":"SUM(U24,V24)","v":0},null,0,0,{"$f":"SUM(Y24,Z24)","v":0}]
[null,null,null,null,null,null,null,null,null,null,null,null,null,null,null,"M","H","Total"]
[null,null,null,null,null,null,null,null,null,null,null,null,null,null,null,{"$f":"SUM(B17,E17,U13,Y13,U16,Y16)","v":0},{"$f":"SUM(C17,F17,V13,Z13,V16,Z16)","v":0},0]
[]
["Población con aptitudes sobresalientes que se ha visto beneficiada en el trimestre por acciones a los servicios de educación especial en el Componente 2"]
["Condición","Beneficiarias/os por condición y por SEE",null,null,null,null,null,"Población total beneficiaria",null,null,"De la población total reportada por condición, especifique si se trata de alguna de las siguientes poblaciones"]
[null,"USAER",null,null,"Otro",null,null,"M","H","TOTAL","Población indígena",null,null,"Población afrodescendiente",null,null,"Población migrante",null,null,null,"Estudiantes beneficiados aptitudes sobresalientes"]
[null,"M","H","TOTAL","M","H","TOTAL",null,null,null,"M","H","TOTAL","M","H","TOTAL","M","H","TOTAL",null,"CAPEP",null,null,null,"UAEBH"]
["AS Intelectual",0,0,{"$f":"SUM(B32:C32)","v":0},0,0,{"$f":"SUM(E32:F32)","v":0},0,0,{"$f":"SUM(H32:I32)","v":0},0,0,{"$f":"SUM(K32:L32)","v":0},0,0,{"$f":"SUM(N32:O32)","v":0},0,0,{"$f":"SUM(Q32:R32)","v":0},null,"M","H","TOTAL",null,"M","H","TOTAL"]
["AS Creativa",0,0,0,0,0,0,0,0,0,0,0,0,0,0,0,0,0,0,null,0,0,{"$f":"SUM(U33,V33)","v":0},null,0,0,{"$f":"SUM(Y33,Z33)","v":0}]
["AS Artística",0,0,0,0,0,0,{"$f":"SUM(B34,E34)","v":0},{"$f":"SUM(C34,F34)","v":0},0,0,0,0,0,0,0,0,0,0,null,"CRIE",null,null,null,"UOP"]
["AS Psicomotriz",0,0,0,0,0,0,0,0,0,0,0,0,0,0,0,0,0,0,null,"M","H","TOTAL",null,"M","H","TOTAL"]
["AS Socioafectiva",0,0,0,0,0,0,0,0,0,0,0,0,0,0,0,0,0,0,null,0,0,{"$f":"SUM(U36,V36)","v":0},null,0,0,{"$f":"SUM(Y36,Z36)","v":0}]
["Totales",{"$f":"SUM(B32:B36)","v":0},{"$f":"SUM(C32:C36)","v":0},0,{"$f":"SUM(E32:E36)","v":0},{"$f":"SUM(F32:F36)","v":0},0,{"$f":"SUM(H32:H36)","v":0},{"$f":"SUM(I32:I36)","v":0},{"$f":"SUM(H37:I37)","v":0},{"$f":"SUM(K32:K36)","v":0},{"$f":"SUM(L32:L36)","v":0},0,{"$f":"SUM(N32:N36)","v":0},{"$f":"SUM(O32:O36)","v":0},0,{"$f":"SUM(Q32:Q36)","v":0},{"$f":"SUM(R32:R36)","v":0},0,null,"Personal docente y/o directivos beneficiados"]
[null,null,null,null,null,null,null,null,null,null,null,null,null,null,null,null,null,null,null,null,"CRIE",null,null,null,"UOP"]
[null,null,null,null,null,null,null,null,null,null,null,null,null,null,null,null,null,null,null,null,"M","H","TOTAL",null,"M","H","TOTAL"]
[null,null,null,null,null,null,null,null,null,null,null,null,null,null,null,null,null,null,null,null,0,0,{"$f":"SUM(U40,V40)","v":0},null,0,0,{"$f":"SUM(Y40,Z40)","v":0}]
[null,null,null,null,null,null,null,null,null,null,null,null,null,null,null,null,null,null,null,null,"Familias y/o público en general beneficiados"]
[null,null,null,null,null,null,null,null,null,null,null,null,null,null,null,null,null,null,null,null,"CRIE",null,null,null,"UOP"]
[null,null,null,null,null,null,null,null,null,null,null,null,null,null,null,"Total de estudiantes con aptitudes sobresalientes beneficiados",null,null,null,null,"M","H","TOTAL",null,"M","H","TOTAL"]
[null,null,null,null,null,null,null,null,null,null,null,null,null,null,null,null,null,null,null,null,0,0,{"$f":"SUM(U44,V44)","v":0},null,0,0,{"$f":"SUM(Y44,Z44)","v":0}]
[null,null,null,null,null,null,null,null,null,null,null,null,null,null,null,"M","H","Total"]
[null,null,null,null,null,null,null,null,null,null,null,null,null,null,null,{"$f":"SUM(B37,E37,U33,Y33,U36,Y36)","v":0},{"$f":"SUM(C37,F37,V33,Z33,V36,Z36)","v":0},{"$f":"SUM(D37,G37,W33,AA33,W36,AA36)","v":0}]
[]
["Población con aptitudes sobresalientes que se ha visto beneficiada en el trimestre por acciones a los servicios de educación especial en el Componente 3"]
["Condición","Beneficiarias/os por condición y por SEE",null,null,null,null,null,"Población total beneficiaria",null,null,"De la población total reportada por condición, especifique si se trata de alguna de las siguientes poblaciones"]
[null,"USAER",null,null,"Otro",null,null,"M","H","TOTAL","Población indígena",null,null,"Población afrodescendiente",null,null,"Población migrante",null,null,null,"Estudiantes beneficiados aptitudes sobresalientes"]
[null,"M","H","TOTAL","M","H","TOTAL",null,null,null,"M","H","TOTAL","M","H","TOTAL","M","H","TOTAL",null,"CAPEP",null,null,null,"UAEBH"]
["AS Intelectual",179,220,{"$f":"SUM(B52:C52)","v":399},0,0,{"$f":"SUM(E52:F52)","v":0},{"$f":"SUM(B52,E52)","v":179},{"$f":"SUM(C52,F52)","v":220},{"$f":"SUM(H52:I52)","v":399},0,0,{"$f":"SUM(K52:L52)","v":0},0,0,{"$f":"SUM(N52:O52)","v":0},0,0,{"$f":"SUM(Q52:R52)","v":0},null,"M","H","TOTAL",null,"M","H","TOTAL"]
["AS Creativa",208,224,432,0,0,0,{"$f":"SUM(B53,E53)","v":208},{"$f":"SUM(C53,F53)","v":224},432,0,0,0,0,0,0,0,0,0,null,0,0,{"$f":"SUM(U53,V53)","v":0},null,0,0,{"$f":"SUM(Y53,Z53)","v":0}]
["AS Artística",86,56,142,0,0,0,86,56,142,0,0,0,0,0,0,0,0,0,null,"CRIE",null,null,null,"UOP"]
["AS Psicomotriz",15,37,52,0,0,0,15,37,52,0,0,0,0,0,0,0,0,0,null,"M","H","TOTAL",null,"M","H","TOTAL"]
["AS Socioafectiva",34,0,34,0,0,0,34,0,34,0,0,0,0,0,0,0,0,0,null,0,0,{"$f":"SUM(U56,V56)","v":0},null,0,0,{"$f":"SUM(Y56,Z56)","v":0}]
["Totales",{"$f":"SUM(B52:B56)","v":522},{"$f":"SUM(C52:C56)","v":537},1059,{"$f":"SUM(E52:E56)","v":0},{"$f":"SUM(F52:F56)","v":0},0,{"$f":"SUM(H52:H56)","v":522},{"$f":"SUM(I52:I56)","v":537},{"$f":"SUM(H57:I57)","v":1059},{"$f":"SUM(K52:K56)","v":0},{"$f":"SUM(L52:L56)","v":0},0,{"$f":"SUM(N52:N56)","v":0},{"$f":"SUM(O52:O56)","v":0},0,{"$f":"SUM(Q52:Q56)","v":0},{"$f":"SUM(R52:R56)","v":0},0,null,"Personal docente y/o directivos beneficiados"]
[null,null,null,null,null,null,null,null,null,null,null,null,null,null,null,null,null,null,null,null,"CRIE",null,null,null,"UOP"]
[null,null,null,null,null,null,null,null,null,null,null,null,null,null,null,null,null,null,null,null,"M","H","TOTAL",null,"M","H","TOTAL"]
[null,null,null,null,null,null,null,null,null,null,null,null,null,null,null,null,null,null,null,null,0,0,{"$f":"SUM(U60,V60)","v":0},null,0,0,{"$f":"SUM(Y60,Z60)","v":0}]
[null,null,null,null,null,null,null,null,null,null,null,null,null,null,null,null,null,null,null,null,"Familias y/o público en general beneficiados"]
[null,null,null,null,null,null,null,null,null,null,null,null,null,null,null,null,null,null,null,null,"CRIE",null,null,null,"UOP"]
[null,null,null,null,null,null,null,null,null,null,null,null,null,null,null,"Total de estudiantes con aptitudes sobresalientes beneficiados",null,null,null,null,"M","H","TOTAL",null,"M","H","TOTAL"]
[null,null,null,null,null,null,null,null,null,null,null,null,null,null,null,null,null,null,null,null,0,0,{"$f":"SUM(U64,V64)","v":0},null,0,0,{"$f":"SUM(Y64,Z64)","v":0}]
[null,null,null,null,null,null,null,null,null,null,null,null,null,null,null,"M","H","Total"]
[null,null,null,null,null,null,null,null,null,null,null,null,null,null,null,{"$f":"SUM(B57,E57,U53,Y53,U56,Y56)","v":522},{"$f":"SUM(C57,F57,V53,Z53,V56,Z56)","v":537},{"$f":"SUM(D57,G57,W53,AA53,W56,AA56)","v":1059}]
[]
["AS: Aptitudes sobresalientes"]

{"sheet":"1. Acciones académicas (DIS)","index":5,"n_rows":63,"n_cols":30,"rows_kept":63,"cut":false,"hidden":false,"merged":[[58,0,58,1],[62,0,64,19],[10,29,11,30],[12,29,21,30],[23,21,23,30],[24,21,26,30],[0,0,4,30],[6,0,6,30],[5,0,5,30],[19,0,19,1],[38,0,38,1],[57,0,57,1],[31,27,31,28],[30,26,30,28],[24,0,26,19],[30,2,30,4],[12,0,13,1],[29,0,30,1],[12,12,12,13],[12,15,12,16],[31,0,32,1],[42,0,42,19],[15,0,15,1],[16,0,16,1],[33,0,33,1],[34,0,34,1],[35,0,35,1],[36,0,36,1],[37,0,37,1],[29,2,29,7],[39,0,39,1],[7,1,7,3],[10,2,10,7],[10,0,11,1],[11,5,11,7],[30,5,30,7],[17,0,17,1],[18,0,18,1],[20,0,20,1],[21,0,21,1],[23,0,23,19],[31,3,31,4],[31,6,31,7],[31,9,31,10],[31,12,31,13],[31,15,31,16],[31,18,31,19],[30,8,30,10],[11,8,11,10],[11,11,11,13],[11,14,11,16],[11,17,11,19],[11,20,11,22],[11,23,11,25],[11,26,11,28],[11,2,11,4],[9,0,9,1],[9,2,9,4],[10,8,10,28],[30,20,30,22],[30,23,30,25],[28,0,28,1],[28,2,28,4],[29,8,29,28],[12,18,12,19],[12,21,12,22],[12,24,12,25],[12,27,12,28],[14,0,14,1],[12,3,12,4],[12,6,12,7],[12,9,12,10],[30,11,30,13],[30,14,30,16],[30,17,30,19],[40,0,40,1],[50,3,50,4],[50,6,50,7],[49,2,49,4],[49,5,49,7],[43,0,45,19],[47,0,47,1],[47,2,47,4],[50,9,50,10],[50,12,50,13],[50,15,50,16],[49,8,49,10],[49,11,49,13],[49,14,49,16],[49,17,49,19],[50,18,50,19],[48,0,49,1],[48,2,48,7],[50,0,51,1],[29,29,30,30],[31,29,40,30],[42,21,42,30],[43,21,45,30],[48,8,48,28],[48,29,49,30],[50,29,59,30],[61,21,61,30],[62,21,64,30],[50,21,50,22],[50,24,50,25],[50,27,50,28],[31,21,31,22],[31,24,31,25],[61,0,61,19],[52,0,52,1],[49,20,49,22],[49,23,49,25],[49,26,49,28],[59,0,59,1],[53,0,53,1],[54,0,54,1],[55,0,55,1],[56,0,56,1]]}
["Subsecretaría de Educación Básica\nDirección General de Desarrollo Curricular\nDirección de Fortalecimiento Curricular para la \nFormación Personal y Social en la Educación Básica\nEducación Especial"]
[]
[]
[]
[]
["Componente: 1. Acciones académicas para Agentes educativos en temas de discapacidad"]
["1.1 Desarrollo de acciones de actualización y fortalecimiento académico de Agentes educativos en temas de discapacidad"]
[null,"SEE beneficiados en el trimestre. Componente 1:",null,null,"USAER",{"$f":"'Servicios EE 2024'!B11","v":81},"CAM básico",{"$f":"'Servicios EE 2024'!C11","v":0},"Básico FpT",{"$f":"'Servicios EE 2024'!C13","v":28},"CAM laboral",{"$f":"'Servicios EE 2024'!D11","v":2},"CAPEP",{"$f":"'Servicios EE 2024'!E11","v":0},"CRIE",{"$f":"'Servicios EE 2024'!F11","v":0},"UOP",{"$f":"'Servicios EE 2024'!G11","v":0},"UAEBH",{"$f":"'Servicios EE 2024'!H11","v":0},"Otro",{"$f":"'Servicios EE 2024'!I11","v":0}]
[]
["Numero de actividad",null,"1.1.1"]
["Nivel de avance de la actividad",null,"Título de la actividad",null,null,null,null,null,"Diplomado en  Neuroeducación",null,null,null,null,null,null,null,null,null,null,null,null,null,null,null,null,null,null,null,null,"Describa brevemente el impacto pedagógico que se obtuvo con esta acción"]
[null,null,"USAER",null,null,"CAM básico",null,null,"CAM básico con FpT",null,null,"CAM laboral",null,null,"CAPEP",null,null,"CRIE",null,null,"UOP",null,null,"UAEBH",null,null,"Otro"]
["En desarrollo",null,"SEE:",81,null,"SEE:",0,null,"SEE:",0,null,"SEE:",0,null,"SEE:",0,null,"SEE:",0,null,"SEE:",0,null,"SEE:",0,null,"SEE:",0,null,"Se contribuyó a que el personal directivo, docente y paradocente se faboreciera en cuanto a su profecionalización y mejora contínua, a traves de la formación en neuroeducación."]
[null,null,"M","H","T","M","H","T","M","H","T","M","H","T","M","H","T","M","H","T","M","H","T","M","H","T","M","H","T"]
["Supervisores",null,2,1,{"$f":"SUM(C15,D15)","v":3},0,0,{"$f":"SUM(F15,G15)","v":0},0,0,{"$f":"SUM(I15,J15)","v":0},0,0,{"$f":"SUM(L15,M15)","v":0},0,0,{"$f":"SUM(O15,P15)","v":0},0,0,{"$f":"SUM(R15,S15)","v":0},0,0,{"$f":"SUM(U15,V15)","v":0},0,0,{"$f":"SUM(X15,Y15)","v":0},0,0,{"$f":"SUM(AA15,AB15)","v":0}]
["Directivas/os",null,30,12,42,0,0,0,0,0,0,0,0,0,0,0,0,0,0,0,0,0,0,0,0,0,0,0,0]
["Docentes",null,46,23,69,0,0,0,0,0,0,0,0,0,0,0,0,0,0,0,0,0,0,0,0,0,0,0,0]
["Equipo de apoyo",null,16,7,23,0,0,0,0,0,0,0,0,0,0,0,0,0,0,0,0,0,0,0,0,0,0,0,0]
["Familias",null,0,0,0,0,0,0,0,0,0,0,0,0,0,0,0,0,0,0,0,0,0,0,0,0,0,0,0]
["Docentes de EB",null,0,0,{"$f":"SUM(C20,D20)","v":0},0,0,{"$f":"SUM(F20,G20)","v":0},0,0,{"$f":"SUM(I20,J20)","v":0},0,0,{"$f":"SUM(L20,M20)","v":0},0,0,{"$f":"SUM(O20,P20)","v":0},0,0,{"$f":"SUM(R20,S20)","v":0},0,0,{"$f":"SUM(U20,V20)","v":0},0,0,{"$f":"SUM(X20,Y20)","v":0},0,0,{"$f":"SUM(AA20,AB20)","v":0}]
["Otros",null,11,2,13,0,0,0,0,0,0,0,0,0,0,0,0,0,0,0,0,0,0,0,0,0,0,0,0]
["TOTAL",null,{"$f":"SUM(C14:C21)","v":105},45,150,0,0,0,0,0,0,0,0,0,0,0,0,0,0,0,0,0,0,0,0,0,0,0,0]
[]
["En caso de requerir alguna precisión o aclaración, describa brevemente: ",null,null,null,null,null,null,null,null,null,null,null,null,null,null,null,null,null,null,null,null,"En caso de modificación, indique número de oficio:"]
[" CONVENIO FIRMADO, TOMA DE ACUERDOS Y ENCUADRE, CONFORMACIÓN DE GRUPOS, CON  TÉRMINO MARZO DE 2025",null,null,null,null,null,null,null,null,null,null,null,null,null,null,null,null,null,null,null,null,"N/A"]
[]
[]
[]
["Numero de actividad",null,"1.1.2"]
["Nivel de avance de la actividad",null,"Título de la actividad",null,null,null,null,null,"Conferencias en Educación Inclusiva",null,null,null,null,null,null,null,null,null,null,null,null,null,null,null,null,null,null,null,null,"Describa brevemente el impacto pedagógico que se obtuvo con esta acción"]
[null,null,"USAER",null,null,"CAM básico",null,null,"CAM básico con FpT",null,null,"CAM laboral",null,null,"CAPEP",null,null,"CRIE",null,null,"UOP",null,null,"UAEBH",null,null,"Otro"]
["Realizada",null,"SEE:",81,null,"SEE:",0,null,"SEE:",28,null,"SEE:",2,null,"SEE:",0,null,"SEE:",0,null,"SEE:",0,null,"SEE:",0,null,"SEE:",0,null,"Se propiciaron espacios de reflexión docente con diversas temáticas de impacto en el desempeño en atención a la diversidad."]
[null,null,"M","H","T","M","H","T","M","H","T","M","H","T","M","H","T","M","H","T","M","H","T","M","H","T","M","H","T"]
["Supervisores",null,0,0,{"$f":"SUM(C34,D34)","v":0},0,0,{"$f":"SUM(F34,G34)","v":0},0,0,{"$f":"SUM(I34,J34)","v":0},0,0,{"$f":"SUM(L34,M34)","v":0},0,0,{"$f":"SUM(O34,P34)","v":0},0,0,{"$f":"SUM(R34,S34)","v":0},0,0,{"$f":"SUM(U34,V34)","v":0},0,0,{"$f":"SUM(X34,Y34)","v":0},0,0,{"$f":"SUM(AA34,AB34)","v":0}]
["Directivas/os",null,57,24,81,0,0,0,22,6,28,2,0,2,0,0,0,0,0,0,0,0,0,0,0,0,0,0,0]
["Docentes",null,150,50,200,0,0,0,100,44,144,0,0,0,0,0,0,0,0,0,0,0,0,0,0,0,0,0,0]
["Equipo de apoyo",null,50,20,70,0,0,0,20,10,30,0,0,0,0,0,0,0,0,0,0,0,0,0,0,0,0,0,0]
["Familias",null,0,0,0,0,0,0,0,0,0,0,0,0,0,0,0,0,0,0,0,0,0,0,0,0,0,0,0]
["Docentes de EB",null,50,50,100,0,0,0,0,0,0,0,0,0,0,0,0,0,0,0,0,0,0,0,0,0,0,0,0]
["Otros",null,14,5,19,0,0,0,0,0,0,0,0,0,0,0,0,0,0,0,0,0,0,0,0,0,0,0,0]
["TOTAL",null,{"$f":"SUM(C33:C40)","v":321},149,470,0,0,0,142,60,202,2,0,2,0,0,0,0,0,0,0,0,0,0,0,0,0,0,0]
[]
["En caso de requerir alguna precisión o aclaración, describa brevemente: ",null,null,null,null,null,null,null,null,null,null,null,null,null,null,null,null,null,null,null,null,"En caso de modificación, indique número de oficio:"]
["N/A",null,null,null,null,null,null,null,null,null,null,null,null,null,null,null,null,null,null,null,null,"N/A"]
[]
[]
[]
["Numero de actividad",null,"1.1.3"]
["Nivel de avance de la actividad",null,"Título de la actividad",null,null,null,null,null,"Talleres: Educación Inclusiva",null,null,null,null,null,null,null,null,null,null,null,null,null,null,null,null,null,null,null,null,"Describa brevemente el impacto pedagógico que se obtuvo con esta acción"]
[null,null,"USAER",null,null,"CAM básico",null,null,"CAM básico con FpT",null,null,"CAM laboral",null,null,"CAPEP",null,null,"CRIE",null,null,"UOP",null,null,"UAEBH",null,null,"Otro"]
["Realizada",null,"SEE:",81,null,"SEE:",0,null,"SEE:",28,null,"SEE:",2,null,"SEE:",0,null,"SEE:",0,null,"SEE:",0,null,"SEE:",0,null,"SEE:",0,null,"Se  capacitó a los maestros en el diseño e implementación de estrategias didacticas, por lo cual, los alumnos beneficiarios favorecerán su proceso de aprendizaje."]
[null,null,"M","H","T","M","H","T","M","H","T","M","H","T","M","H","T","M","H","T","M","H","T","M","H","T","M","H","T"]
["Supervisores",null,0,0,{"$f":"SUM(C53,D53)","v":0},0,0,{"$f":"SUM(F53,G53)","v":0},0,0,{"$f":"SUM(I53,J53)","v":0},0,0,{"$f":"SUM(L53,M53)","v":0},0,0,{"$f":"SUM(O53,P53)","v":0},0,0,{"$f":"SUM(R53,S53)","v":0},0,0,{"$f":"SUM(U53,V53)","v":0},0,0,{"$f":"SUM(X53,Y53)","v":0},0,0,{"$f":"SUM(AA53,AB53)","v":0}]
["Directivas/os",null,57,24,81,0,0,0,22,6,28,2,0,2,0,0,0,0,0,0,0,0,0,0,0,0,0,0,0]
["Docentes",null,150,50,200,0,0,0,100,44,144,0,0,0,0,0,0,0,0,0,0,0,0,0,0,0,0,0,0]
["Equipo de apoyo",null,50,20,70,0,0,0,20,10,30,0,0,0,0,0,0,0,0,0,0,0,0,0,0,0,0,0,0]
["Familias",null,0,0,0,0,0,0,0,0,0,0,0,0,0,0,0,0,0,0,0,0,0,0,0,0,0,0,0]
["Docentes de EB",null,50,50,100,0,0,0,0,0,0,0,0,0,0,0,0,0,0,0,0,0,0,0,0,0,0,0,0]
["Otros",null,14,5,19,0,0,0,0,0,0,0,0,0,0,0,0,0,0,0,0,0,0,0,0,0,0,0,0]
["TOTAL",null,{"$f":"SUM(C52:C59)","v":321},149,470,0,0,0,142,60,202,2,0,2,0,0,0,0,0,0,0,0,0,0,0,0,0,0,0]
[]
["En caso de requerir alguna precisión o aclaración, describa brevemente: ",null,null,null,null,null,null,null,null,null,null,null,null,null,null,null,null,null,null,null,null,"En caso de modificación, indique número de oficio:"]
["N/A",null,null,null,null,null,null,null,null,null,null,null,null,null,null,null,null,null,null,null,null,"N/A"]

{"sheet":"1. Acciones académicas (AS)","index":6,"n_rows":78,"n_cols":21,"rows_kept":78,"cut":false,"hidden":false,"merged":[[0,0,4,21],[5,0,5,21],[6,0,6,21],[10,20,11,21],[12,20,21,21],[10,6,10,19],[23,14,23,21],[24,14,26,21],[7,1,7,3],[9,0,9,1],[9,2,9,4],[11,2,11,4],[11,5,11,7],[16,0,16,1],[12,3,12,4],[12,6,12,7],[12,18,12,19],[11,8,11,10],[12,15,12,16],[11,17,11,19],[21,0,21,1],[11,11,11,13],[12,9,12,10],[12,12,12,13],[70,20,71,21],[72,20,80,21],[70,6,70,19],[72,9,72,10],[72,18,72,19],[71,14,71,16],[66,0,66,21],[10,0,11,1],[12,0,13,1],[10,2,10,5],[17,0,17,1],[61,0,61,12],[55,0,55,1],[56,0,56,1],[28,2,28,4],[30,14,30,16],[19,0,19,1],[18,0,18,1],[20,0,20,1],[14,0,14,1],[15,0,15,1],[43,0,45,12],[48,0,49,1],[50,15,50,16],[72,12,72,13],[71,5,71,7],[52,0,52,1],[53,0,53,1],[54,0,54,1],[74,0,74,1],[76,14,76,19],[77,0,79,12],[77,14,79,19],[71,17,71,19],[71,2,71,4],[71,11,71,13],[72,0,73,1],[76,0,76,12],[72,15,72,16],[71,8,71,10],[69,2,69,4],[72,6,72,7],[67,1,67,3],[69,0,69,1],[70,0,71,1],[70,2,70,5],[72,3,72,4],[50,0,51,1],[33,0,33,1],[34,0,34,1],[35,0,35,1],[36,0,36,1],[37,0,37,1],[39,0,39,1],[40,0,40,1],[38,0,38,1],[11,14,11,16],[23,0,23,12],[24,0,26,12],[29,0,30,1],[29,2,29,5],[49,2,49,4],[49,5,49,7],[49,8,49,10],[49,14,49,16],[29,6,29,19],[31,0,32,1],[42,0,42,12],[47,0,47,1],[47,2,47,4],[31,6,31,7],[28,0,28,1],[31,12,31,13],[31,3,31,4],[48,2,48,5],[30,2,30,4],[30,5,30,7],[30,8,30,10],[30,11,30,13],[29,20,30,21],[31,20,40,21],[42,14,42,21],[43,14,45,21],[48,6,48,19],[48,20,49,21],[50,20,59,21],[61,14,61,21],[62,14,64,21],[31,18,31,19],[31,15,31,16],[62,0,64,12],[50,6,50,7],[50,9,50,10],[50,12,50,13],[59,0,59,1],[49,11,49,13],[49,17,49,19],[50,18,50,19],[50,3,50,4],[57,0,57,1],[58,0,58,1],[30,17,30,19],[31,9,31,10]]}
["Subsecretaría de Educación Básica\nDirección General de Desarrollo Curricular\nDirección de Fortalecimiento Curricular para la \nFormación Personal y Social en la Educación Básica\nEducación Especial"]
[]
[]
[]
[]
["Componente: 1. Acciones académicas para Agentes educativos en temas de aptitudes sobresalientes"]
["1.1 Desarrollo de acciones de actualización y fortalecimiento académico de Agentes educativos en temas de aptitudes sobresalientes"]
[null,"SEE beneficiados en el trimestre. Componente 1:",null,null,"USAER",{"$f":"'Servicios EE 2024'!M11","v":81},"CAPEP",{"$f":"'Servicios EE 2024'!N11","v":0},"CRIE",{"$f":"'Servicios EE 2024'!O11","v":0},"UOP",{"$f":"'Servicios EE 2024'!P11","v":0},"UAEBH",{"$f":"'Servicios EE 2024'!Q11","v":0},"Otro",{"$f":"'Servicios EE 2024'!R11","v":0}]
[]
["Numero de actividad",null,"1.1.1"]
["Nivel de avance de la actividad",null,"Título de la actividad",null,null,null,"Diplomado en atención  a niños con aptitudes sobresalientes.",null,null,null,null,null,null,null,null,null,null,null,null,null,"Describa brevemente el impacto pedagógico que se obtuvo con esta acción"]
[null,null,"USAER",null,null,"CAPEP",null,null,"CRIE",null,null,"UOP",null,null,"UAEBH",null,null,"Otro"]
["Realizada",null,"SEE:",81,null,"SEE:",0,null,"SEE:",0,null,"SEE:",0,null,"SEE:",0,null,"SEE:",0,null,"Se favoreció el proceso de diagnóstico y atención de los alumnos  con aptitudes sobresalientes, de acuerdo con los lineamientos nacionales y contextualizado."]
[null,null,"M","H","T","M","H","T","M","H","T","M","H","T","M","H","T","M","H","T"]
["Supervisores",null,0,0,{"$f":"SUM(C15,D15)","v":0},0,0,{"$f":"SUM(F15,G15)","v":0},0,0,{"$f":"SUM(I15,J15)","v":0},0,0,{"$f":"SUM(L15,M15)","v":0},0,0,{"$f":"SUM(O15,P15)","v":0},0,0,{"$f":"SUM(R15,S15)","v":0}]
["Directivas/os",null,7,7,14,0,0,0,0,0,0,0,0,0,0,0,0,0,0,0]
["Docentes",null,64,63,127,0,0,0,0,0,0,0,0,0,0,0,0,0,0,0]
["Equipo de apoyo",null,7,7,14,0,0,0,0,0,0,0,0,0,0,0,0,0,0,0]
["Familias",null,0,0,0,0,0,0,0,0,0,0,0,0,0,0,0,0,0,0]
["Docentes de EB",null,25,25,{"$f":"SUM(C20,D20)","v":50},0,0,{"$f":"SUM(F20,G20)","v":0},0,0,{"$f":"SUM(I20,J20)","v":0},0,0,{"$f":"SUM(L20,M20)","v":0},0,0,{"$f":"SUM(O20,P20)","v":0},0,0,{"$f":"SUM(R20,S20)","v":0}]
["Otros",null,3,2,5,0,0,0,0,0,0,0,0,0,0,0,0,0,0,0]
["TOTAL",null,{"$f":"SUM(C14:C21)","v":106},104,210,0,0,0,0,0,0,0,0,0,0,0,0,0,0,0]
[]
["En caso de requerir alguna precisión o aclaración, describa brevemente: ",null,null,null,null,null,null,null,null,null,null,null,null,null,"En caso de modificación, indique número de oficio:"]
["N/A",null,null,null,null,null,null,null,null,null,null,null,null,null,"N/A"]
[]
[]
[]
["Numero de actividad",null,"1.1.2"]
["Nivel de avance de la actividad",null,"Título de la actividad",null,null,null,"Taller Enriquecimiento a través del Arte",null,null,null,null,null,null,null,null,null,null,null,null,null,"Describa brevemente el impacto pedagógico que se obtuvo con esta acción"]
[null,null,"USAER",null,null,"CAPEP",null,null,"CRIE",null,null,"UOP",null,null,"UAEBH",null,null,"Otro"]
["Realizada",null,"SEE:",81,null,"SEE:",0,null,"SEE:",0,null,"SEE:",0,null,"SEE:",0,null,"SEE:",0,null,"La capacitación a los agentes educativos en esta temática permitió que los estudiantes que atienden, potencialicen su talento y se satisfagan sus necesidades educativas específicas en el entorno escolar."]
[null,null,"M","H","T","M","H","T","M","H","T","M","H","T","M","H","T","M","H","T"]
["Supervisores",null,0,0,{"$f":"SUM(C34,D34)","v":0},0,0,{"$f":"SUM(F34,G34)","v":0},0,0,{"$f":"SUM(I34,J34)","v":0},0,0,{"$f":"SUM(L34,M34)","v":0},0,0,{"$f":"SUM(O34,P34)","v":0},0,0,{"$f":"SUM(R34,S34)","v":0}]
["Directivas/os",null,0,0,0,0,0,0,0,0,0,0,0,0,0,0,0,0,0,0]
["Docentes",null,150,30,180,0,0,0,0,0,0,0,0,0,0,0,0,0,0,0]
["Equipo de apoyo",null,0,0,0,0,0,0,0,0,0,0,0,0,0,0,0,0,0,0]
["Familias",null,0,0,0,0,0,0,0,0,0,0,0,0,0,0,0,0,0,0]
["Docentes de EB",null,0,0,0,0,0,0,0,0,0,0,0,0,0,0,0,0,0,0]
["Otros",null,0,0,0,0,0,0,0,0,0,0,0,0,0,0,0,0,0,0]
["TOTAL",null,{"$f":"SUM(C33:C40)","v":150},30,180,0,0,0,0,0,0,0,0,0,0,0,0,0,0,0]
[]
["En caso de requerir alguna precisión o aclaración, describa brevemente: ",null,null,null,null,null,null,null,null,null,null,null,null,null,"En caso de modificación, indique número de oficio:"]
["N/A",null,null,null,null,null,null,null,null,null,null,null,null,null,"N/A"]
[]
[]
[]
["Numero de actividad",null,"1.1.3"]
["Nivel de avance de la actividad",null,"Título de la actividad",null,null,null,"N/A",null,null,null,null,null,null,null,null,null,null,null,null,null,"Describa brevemente el impacto pedagógico que se obtuvo con esta acción"]
[null,null,"USAER",null,null,"CAPEP",null,null,"CRIE",null,null,"UOP",null,null,"UAEBH",null,null,"Otro"]
[null,null,"SEE:",0,null,"SEE:",0,null,"SEE:",0,null,"SEE:",0,null,"SEE:",0,null,"SEE:",0,null,"N/A"]
[null,null,"M","H","T","M","H","T","M","H","T","M","H","T","M","H","T","M","H","T"]
["Supervisores",null,0,0,{"$f":"SUM(C53,D53)","v":0},0,0,{"$f":"SUM(F53,G53)","v":0},0,0,{"$f":"SUM(I53,J53)","v":0},0,0,{"$f":"SUM(L53,M53)","v":0},0,0,{"$f":"SUM(O53,P53)","v":0},0,0,{"$f":"SUM(R53,S53)","v":0}]
["Directivas/os",null,0,0,0,0,0,0,0,0,0,0,0,0,0,0,0,0,0,0]
["Docentes",null,0,0,0,0,0,0,0,0,0,0,0,0,0,0,0,0,0,0]
["Equipo de apoyo",null,0,0,0,0,0,0,0,0,0,0,0,0,0,0,0,0,0,0]
["Familias",null,0,0,0,0,0,0,0,0,0,0,0,0,0,0,0,0,0,0]
["Docentes de EB",null,0,0,0,0,0,0,0,0,0,0,0,0,0,0,0,0,0,0]
["Otros",null,0,0,0,0,0,0,0,0,0,0,0,0,0,0,0,0,0,0]
["TOTAL",null,{"$f":"SUM(C52:C59)","v":0},0,0,0,0,0,0,0,0,0,0,0,0,0,0,0,0,0]
[]
["En caso de requerir alguna precisión o aclaración, describa brevemente: ",null,null,null,null,null,null,null,null,null,null,null,null,null,"En caso de modificación, indique número de oficio:"]
["N/A",null,null,null,null,null,null,null,null,null,null,null,null,null,"N/A"]
[]
[]
[]
["1.2 Realización de encuentros, cursos, talleres y/o reuniones entre madres y padres de familia y/o tutores de estudiantes con aptitudes sobresalientes para la conformación y la operación de sus redes de apoyo"]
[null,"SEE beneficiados en el trimestre. Componente 1:",null,null,"USAER",{"$f":"'Servicios EE 2024'!M11","v":81},"CAPEP",{"$f":"'Servicios EE 2024'!N11","v":0},"CRIE",{"$f":"'Servicios EE 2024'!O11","v":0},"UOP",{"$f":"'Servicios EE 2024'!P11","v":0},"UAEBH",{"$f":"'Servicios EE 2024'!Q11","v":0},"Otro",{"$f":"'Servicios EE 2024'!R11","v":0}]
[]
["Numero de actividad",null,"1.2.1"]
["Nivel de avance de la actividad",null,"Título de la actividad",null,null,null,"N/A",null,null,null,null,null,null,null,null,null,null,null,null,null,"Describa brevemente el impacto pedagógico que se obtuvo con esta acción"]
[null,null,"USAER",null,null,"CAPEP",null,null,"CRIE",null,null,"UOP",null,null,"UAEBH",null,null,"Otro"]
[null,null,"SEE:",0,null,"SEE:",0,null,"SEE:",0,null,"SEE:",0,null,"SEE:",0,null,"SEE:",1,null,"N/A"]
[null,null,"M","H","T","M","H","T","M","H","T","M","H","T","M","H","T","M","H","T"]
["Familias",null,0,0,{"$f":"SUM(C75,D75)","v":0},0,0,{"$f":"SUM(F75,G75)","v":0},0,0,{"$f":"SUM(I75,J75)","v":0},0,0,{"$f":"SUM(L75,M75)","v":0},0,0,{"$f":"SUM(O75,P75)","v":0},0,0,{"$f":"SUM(R75,S75)","v":0}]
[]
["En caso de requerir alguna precisión o aclaración, describa brevemente: ",null,null,null,null,null,null,null,null,null,null,null,null,null,"En caso de modificación, indique número de oficio:"]
["N/A",null,null,null,null,null,null,null,null,null,null,null,null,null,"N/A"]

{"sheet":"2. Atención complementaria(DIS)","index":7,"n_rows":30,"n_cols":30,"rows_kept":30,"cut":false,"hidden":false,"merged":[[0,0,4,30],[5,0,5,30],[6,0,6,30],[21,0,21,1],[21,2,21,4],[14,0,14,1],[11,23,11,25],[11,26,11,28],[12,0,13,1],[12,3,12,4],[12,6,12,7],[12,9,12,10],[12,12,12,13],[12,15,12,16],[12,18,12,19],[12,21,12,22],[29,0,31,19],[29,21,31,28],[10,29,11,30],[12,29,21,30],[10,8,10,28],[11,5,11,7],[23,17,23,19],[23,20,23,22],[23,23,23,25],[23,26,23,28],[28,0,28,19],[24,18,24,19],[24,21,24,22],[24,24,24,25],[28,21,28,28],[24,27,24,28],[26,0,26,1],[24,0,25,1],[24,3,24,4],[24,6,24,7],[24,9,24,10],[24,12,24,13],[24,15,24,16],[23,2,23,4],[23,5,23,7],[23,8,23,10],[23,11,23,13],[23,14,23,16],[11,20,11,22],[22,2,22,7],[16,0,16,19],[16,21,16,28],[17,0,19,19],[17,21,19,28],[24,29,32,30],[22,8,22,28],[22,29,23,30],[22,0,23,1],[7,1,7,3],[9,0,9,1],[9,2,9,4],[10,0,11,1],[10,2,10,7],[11,2,11,4],[12,24,12,25],[12,27,12,28],[11,8,11,10],[11,11,11,13],[11,14,11,16],[11,17,11,19]]}
["Subsecretaría de Educación Básica\nDirección General de Desarrollo Curricular\nDirección de Fortalecimiento Curricular para la \nFormación Personal y Social en la Educación Básica\nEducación Especial"]
[]
[]
[]
[]
["Componente: 2. Acciones de atención complementaria para estudiantes con discapacidad"]
["2.2 Acciones orientadas a que las y los estudiantes con discapacidad pongan en práctica las habilidades académicas, artísticas, deportivas, para la vida y/o laborales y que promuevan la sensibilización, promoción, difusión y desarrollo en la comunidad escolar una cultura inclusiva, a través de campañas, ferias y eventos"]
[null,"SEE beneficiados en el trimestre. Componente 2:",null,null,"USAER",{"$f":"'Servicios EE 2024'!B$16","v":0},"CAM básico",{"$f":"'Servicios EE 2024'!C$16","v":0},"Básico FpT",{"$f":"'Servicios EE 2024'!C$18","v":28},"CAM laboral",{"$f":"'Servicios EE 2024'!D$16","v":2},"CAPEP",{"$f":"'Servicios EE 2024'!E$16","v":0},"CRIE",{"$f":"'Servicios EE 2024'!F$16","v":0},"UOP",{"$f":"'Servicios EE 2024'!G$16","v":0},"UAEBH",{"$f":"'Servicios EE 2024'!H$16","v":0},"Otro",{"$f":"'Servicios EE 2024'!I$16","v":0}]
[]
["Numero de actividad",null,"2.2.1"]
["Nivel de avance de la actividad",null,"Título de la actividad",null,null,null,null,null,"Encuentro deportivo",null,null,null,null,null,null,null,null,null,null,null,null,null,null,null,null,null,null,null,null,"Describa brevemente el impacto pedagógico que se obtuvo con esta acción"]
[null,null,"USAER",null,null,"CAM básico",null,null,"CAM básico con FpT",null,null,"CAM laboral",null,null,"CAPEP",null,null,"CRIE",null,null,"UOP",null,null,"UAEBH",null,null,"Otro"]
["Realizada",null,"SEE:",0,null,"SEE:",0,null,"SEE:",28,null,"SEE:",2,null,"SEE:",0,null,"SEE:",0,null,"SEE:",0,null,"SEE:",0,null,"SEE:",0,null,"Se favorecieron las habilidades psicomotrices y sociales de los alumnos con un encuentro entre pares con disciplinas  de futbol, básquetbol, cachibol, atletismo y se incluyó natación."]
[null,null,"M","H","T","M","H","T","M","H","T","M","H","T","M","H","T","M","H","T","M","H","T","M","H","T","M","H","T"]
["Estudiantes",null,0,0,{"$f":"SUM(C15,D15)","v":0},0,0,{"$f":"SUM(F15,G15)","v":0},135,134,{"$f":"SUM(I15,J15)","v":269},21,20,{"$f":"SUM(L15,M15)","v":41},0,0,{"$f":"SUM(O15,P15)","v":0},0,0,{"$f":"SUM(R15,S15)","v":0},0,0,{"$f":"SUM(U15,V15)","v":0},0,0,{"$f":"SUM(X15,Y15)","v":0},0,0,{"$f":"SUM(AA15,AB15)","v":0}]
[]
["En caso de requerir alguna precisión o aclaración, describa brevemente: ",null,null,null,null,null,null,null,null,null,null,null,null,null,null,null,null,null,null,null,null,"En caso de modificación, indique número de oficio:"]
["REALIZADA 08 DE NOVIEMBRE DE 2024",null,null,null,null,null,null,null,null,null,null,null,null,null,null,null,null,null,null,null,null,"N/A"]
[]
[]
[]
["Numero de actividad",null,"2.2.2"]
["Nivel de avance de la actividad",null,"Título de la actividad",null,null,null,null,null,"FERIA INCLUSIVA",null,null,null,null,null,null,null,null,null,null,null,null,null,null,null,null,null,null,null,null,"Describa brevemente el impacto pedagógico que se obtuvo con esta acción"]
[null,null,"USAER",null,null,"CAM básico",null,null,"CAM básico con FpT",null,null,"CAM laboral",null,null,"CAPEP",null,null,"CRIE",null,null,"UOP",null,null,"UAEBH",null,null,"Otro"]
["Realizada",null,"SEE:",0,null,"SEE:",0,null,"SEE:",8,null,"SEE:",2,null,"SEE:",0,null,"SEE:",0,null,"SEE:",0,null,"SEE:",0,null,"SEE:",0,null,"Se promovieron las habilidades artísticas y culturales de los alumnos de CAM, y se dio a conocer a la sociedad las elaboraciones en los distintos talleres, para favorecer la inclusión social y laboral de los alumnos."]
[null,null,"M","H","T","M","H","T","M","H","T","M","H","T","M","H","T","M","H","T","M","H","T","M","H","T","M","H","T"]
["Estudiantes",null,0,0,{"$f":"SUM(C27,D27)","v":0},0,0,{"$f":"SUM(F27,G27)","v":0},307,513,820,54,67,{"$f":"SUM(L27,M27)","v":121},0,0,{"$f":"SUM(O27,P27)","v":0},0,0,{"$f":"SUM(R27,S27)","v":0},0,0,{"$f":"SUM(U27,V27)","v":0},0,0,{"$f":"SUM(X27,Y27)","v":0},0,0,{"$f":"SUM(AA27,AB27)","v":0}]
[]
["En caso de requerir alguna precisión o aclaración, describa brevemente: ",null,null,null,null,null,null,null,null,null,null,null,null,null,null,null,null,null,null,null,null,"En caso de modificación, indique número de oficio:"]
["N/A",null,null,null,null,null,null,null,null,null,null,null,null,null,null,null,null,null,null,null,null,"N/A"]

{"sheet":"2. Atención complementaria (AS)","index":8,"n_rows":42,"n_cols":21,"rows_kept":42,"cut":false,"hidden":false,"merged":[[17,0,19,13],[17,15,19,22],[10,20,10,24],[11,20,14,24],[5,0,5,24],[0,0,4,24],[16,0,16,13],[16,15,16,22],[7,1,7,3],[9,0,9,1],[9,2,9,4],[12,12,12,13],[12,15,12,16],[12,18,12,19],[10,6,10,19],[6,0,6,24],[22,20,22,24],[21,0,21,1],[21,2,21,4],[14,0,14,1],[11,8,11,10],[11,11,11,13],[11,14,11,16],[11,17,11,19],[12,0,13,1],[12,3,12,4],[12,6,12,7],[10,0,11,1],[10,2,10,5],[11,2,11,4],[11,5,11,7],[12,9,12,10],[24,9,24,10],[24,12,24,13],[24,15,24,16],[24,18,24,19],[22,0,23,1],[22,2,22,5],[23,2,23,4],[23,5,23,7],[22,6,22,19],[26,0,26,1],[24,0,25,1],[24,3,24,4],[24,6,24,7],[34,20,34,24],[28,0,28,13],[28,15,28,22],[29,0,31,13],[29,15,31,22],[33,0,33,1],[33,2,33,4],[23,20,26,24],[23,8,23,10],[23,11,23,13],[23,14,23,16],[23,17,23,19],[36,6,36,7],[34,0,35,1],[34,2,34,5],[35,2,35,4],[35,5,35,7],[34,6,34,19],[40,0,40,13],[40,15,40,22],[41,0,43,13],[41,15,43,22],[36,9,36,10],[36,12,36,13],[36,15,36,16],[36,18,36,19],[38,0,38,1],[35,20,38,24],[35,8,35,10],[35,11,35,13],[35,14,35,16],[35,17,35,19],[36,0,37,1],[36,3,36,4]]}
["Subsecretaría de Educación Básica\nDirección General de Desarrollo Curricular\nDirección de Fortalecimiento Curricular para la \nFormación Personal y Social en la Educación Básica\nEducación Especial"]
[]
[]
[]
[]
["Componente: 2. Acciones de atención complementaria para estudiantes con aptitudes sobresalientes"]
["2.1 Acciones orientadas a la intervención directa y la atención complementaria: académica, artística, deportiva, rehabilitadora, desarrollo de habilidades socioafectivas y/o que contribuyan en el diagnóstico de las y los estudiantes con aptitudes sobresalientes"]
[null,"SEE beneficiados en el trimestre. Componente 2:",null,null,"USAER",{"$f":"'Servicios EE 2024'!M$16","v":65},"CAPEP",{"$f":"'Servicios EE 2024'!N$16","v":0},"CRIE",{"$f":"'Servicios EE 2024'!O$16","v":0},"UOP",{"$f":"'Servicios EE 2024'!P$16","v":0},"UAEBH",{"$f":"'Servicios EE 2024'!Q$16","v":0},"Otro",{"$f":"'Servicios EE 2024'!R$16","v":0}]
[]
["Numero de actividad",null,"2.1.1"]
["Nivel de avance de la actividad",null,"Título de la actividad",null,null,null,"N/A",null,null,null,null,null,null,null,null,null,null,null,null,null,"Describa brevemente el impacto pedagógico que se obtuvo con esta acción"]
[null,null,"USAER",null,null,"CAPEP",null,null,"CRIE",null,null,"UOP",null,null,"UAEBH",null,null,"Otro",null,null,"N/A"]
[null,null,"SEE:",0,null,"SEE:",0,null,"SEE:",0,null,"SEE:",0,null,"SEE:",0,null,"SEE:",0]
[null,null,"M","H","T","M","H","T","M","H","T","M","H","T","M","H","T","M","H","T"]
["Estudiantes",null,0,0,0,0,0,{"$f":"SUM(F15,G15)","v":0},0,0,{"$f":"SUM(I15,J15)","v":0},0,0,{"$f":"SUM(L15,M15)","v":0},0,0,{"$f":"SUM(O15,P15)","v":0},0,0,{"$f":"SUM(R15,S15)","v":0}]
[]
["En caso de requerir alguna precisión o aclaración, describa brevemente: ",null,null,null,null,null,null,null,null,null,null,null,null,null,null,"En caso de modificación, indique número de oficio:"]
["N/A",null,null,null,null,null,null,null,null,null,null,null,null,null,null,"N/A"]
[]
[]
[]
["Numero de actividad",null,"2.1.2"]
["Nivel de avance de la actividad",null,"Título de la actividad",null,null,null,"TALLERES DE ENRIQUECIMIENTO EXTRACURRICULAR DE CIENCIAS",null,null,null,null,null,null,null,null,null,null,null,null,null,"Describa brevemente el impacto pedagógico que se obtuvo con esta acción"]
[null,null,"USAER",null,null,"CAPEP",null,null,"CRIE",null,null,"UOP",null,null,"UAEBH",null,null,"Otro",null,null,"Esta actividad despertó el interés y curiosidad de los alumnos por el pensamiento científico, con actividades lúdicas y creativas que se implementaron en los entornos escolares de los alumnos."]
["En desarrollo",null,"SEE:",65,null,"SEE:",0,null,"SEE:",0,null,"SEE:",0,null,"SEE:",0,null,"SEE:",0]
[null,null,"M","H","T","M","H","T","M","H","T","M","H","T","M","H","T","M","H","T"]
["Estudiantes",null,200,200,{"$f":"SUM(C27,D27)","v":400},0,0,{"$f":"SUM(F27,G27)","v":0},0,0,{"$f":"SUM(I27,J27)","v":0},0,0,{"$f":"SUM(L27,M27)","v":0},0,0,{"$f":"SUM(O27,P27)","v":0},0,0,{"$f":"SUM(R27,S27)","v":0}]
[]
["En caso de requerir alguna precisión o aclaración, describa brevemente: ",null,null,null,null,null,null,null,null,null,null,null,null,null,null,"En caso de modificación, indique número de oficio:"]
[" CUATRO SESIONES EFECTUADAS, CON TÉRMINO 14 MARZO DE 2025",null,null,null,null,null,null,null,null,null,null,null,null,null,null,"N/A"]
[]
[]
[]
["Numero de actividad",null,"2.1.3"]
["Nivel de avance de la actividad",null,"Título de la actividad",null,null,null,"TALLERES DE ENRIQUECIMIENTO EXTRACURRICULAR DE DANZA",null,null,null,null,null,null,null,null,null,null,null,null,null,"Describa brevemente el impacto pedagógico que se obtuvo con esta acción"]
[null,null,"USAER",null,null,"CAPEP",null,null,"CRIE",null,null,"UOP",null,null,"UAEBH",null,null,"Otro",null,null,"Se perfeccionaron las habilidades psicomotrices y técnicas de los alumnos participantes, enriqueciendo el ámbito físico y cultural de los mismos."]
["En desarrollo",null,"SEE:",46,null,"SEE:",0,null,"SEE:",0,null,"SEE:",0,null,"SEE:",0,null,"SEE:",0]
[null,null,"M","H","T","M","H","T","M","H","T","M","H","T","M","H","T","M","H","T"]
["Estudiantes",null,100,50,{"$f":"SUM(C39,D39)","v":150},0,0,{"$f":"SUM(F39,G39)","v":0},0,0,{"$f":"SUM(I39,J39)","v":0},0,0,{"$f":"SUM(L39,M39)","v":0},0,0,{"$f":"SUM(O39,P39)","v":0},0,0,{"$f":"SUM(R39,S39)","v":0}]
[]
["En caso de requerir alguna precisión o aclaración, describa brevemente: ",null,null,null,null,null,null,null,null,null,null,null,null,null,null,"En caso de modificación, indique número de oficio:"]
[" CONVENIO FIRMADO, TOMA DE ACUERDOS Y ENCUADRE, CONFORMACIÓN DE GRUPOS, CON  TÉRMINO MARZO DE 2025",null,null,null,null,null,null,null,null,null,null,null,null,null,null,"OFICIO ARTÍCULO 17: 0187 ANEXO 8"]

{"sheet":"3. Equipamiento específico(DIS)","index":9,"n_rows":124,"n_cols":53,"rows_kept":124,"cut":false,"hidden":false,"merged":[[77,19,77,26],[36,52,38,59],[39,52,39,59],[40,52,40,59],[41,52,41,59],[60,52,60,59],[61,52,61,59],[62,52,62,59],[63,52,63,59],[64,52,64,59],[57,52,57,59],[59,52,59,59],[56,52,56,59],[55,48,55,51],[63,48,63,51],[51,52,53,59],[54,52,54,59],[55,52,55,59],[64,48,64,51],[60,48,60,51],[61,48,61,51],[62,48,62,51],[56,48,56,51],[57,48,57,51],[15,52,15,59],[33,0,33,59],[18,48,18,51],[24,48,24,51],[25,48,25,51],[43,52,43,59],[42,52,42,59],[39,48,39,51],[40,48,40,51],[35,22,35,24],[35,25,35,26],[35,27,35,29],[35,30,35,31],[36,17,38,17],[36,28,36,31],[36,18,36,21],[37,18,38,18],[37,23,38,23],[35,17,35,19],[36,32,38,32],[37,14,37,16],[16,52,16,59],[17,52,17,59],[18,52,18,59],[0,48,4,59],[5,0,5,59],[26,48,26,51],[27,48,27,51],[13,52,13,59],[14,52,14,59],[7,0,7,59],[10,52,12,59],[36,48,38,51],[37,13,38,13],[9,7,9,9],[10,22,12,22],[10,23,10,26],[11,23,12,23],[11,24,11,26],[9,42,9,44],[9,45,9,46],[10,42,12,42],[10,43,10,46],[9,12,9,14],[9,15,9,16],[9,17,9,19],[35,40,35,41],[11,33,12,33],[10,48,12,51],[13,48,13,51],[14,48,14,51],[43,48,43,51],[41,48,41,51],[42,48,42,51],[35,20,35,21],[35,35,35,36],[10,47,12,47],[36,47,38,47],[35,45,35,46],[36,38,36,41],[36,42,38,42],[36,43,36,46],[37,38,38,38],[37,39,37,41],[37,43,38,43],[37,44,37,46],[35,37,35,39],[36,37,38,37],[11,43,12,43],[11,44,11,46],[37,33,38,33],[15,48,15,51],[59,48,59,51],[51,48,53,51],[54,48,54,51],[58,48,58,51],[91,2,91,4],[91,5,91,6],[87,0,87,26],[120,20,120,23],[76,19,76,26],[117,0,119,1],[76,15,76,18],[77,15,77,18],[78,15,78,18],[79,15,79,18],[80,15,80,18],[81,15,81,18],[82,15,82,18],[83,15,83,18],[84,15,84,18],[117,2,119,2],[117,3,117,6],[117,7,119,7],[117,8,117,11],[117,12,119,12],[95,0,95,1],[120,0,120,1],[121,0,121,1],[116,5,116,6],[116,10,116,11],[92,8,92,11],[106,0,106,1],[107,0,107,1],[105,0,105,1],[111,0,111,46],[97,0,97,1],[101,0,101,1],[102,0,102,1],[103,0,103,1],[104,0,104,1],[120,17,120,19],[93,29,93,31],[93,33,94,33],[93,34,93,36],[93,38,94,38],[93,39,93,41],[112,0,112,46],[93,3,94,3],[93,4,93,6],[75,19,75,26],[51,17,53,17],[51,18,51,21],[52,19,52,21],[52,28,53,28],[51,22,53,22],[50,30,50,31],[72,0,74,0],[118,3,119,3],[118,4,118,6],[118,8,119,8],[118,9,118,11],[118,13,119,13],[118,14,118,16],[117,17,119,19],[92,0,94,1],[75,15,75,18],[79,12,79,14],[98,0,98,1],[99,0,99,1],[100,0,100,1],[51,3,51,6],[51,7,53,7],[93,9,93,11],[50,32,50,34],[52,29,52,31],[51,27,53,27],[51,28,51,31],[52,8,53,8],[52,9,52,11],[52,13,53,13],[52,14,52,16],[116,12,116,14],[52,18,53,18],[52,23,53,23],[93,13,94,13],[93,14,93,16],[116,7,116,9],[72,7,74,7],[73,9,73,11],[92,13,92,16],[72,12,74,14],[75,12,75,14],[76,12,76,14],[77,12,77,14],[78,12,78,14],[72,15,74,18],[72,19,74,26],[50,45,50,46],[51,42,53,42],[51,43,51,46],[52,43,53,43],[52,44,52,46],[50,37,50,39],[50,40,50,41],[51,37,53,37],[51,38,51,41],[52,39,52,41],[52,38,53,38],[50,42,50,44],[91,32,91,34],[91,35,91,36],[91,37,91,39],[91,40,91,41],[92,18,92,21],[92,23,92,26],[92,22,94,22],[93,18,94,18],[93,19,93,21],[93,23,94,23],[93,24,93,26],[92,27,94,27],[92,28,92,31],[92,32,94,32],[91,22,91,24],[92,37,94,37],[52,33,53,33],[72,8,72,11],[93,8,94,8],[116,2,116,4],[116,15,116,16],[92,12,94,12],[43,0,43,1],[46,0,46,46],[11,38,12,38],[10,1,12,1],[28,0,28,1],[35,2,35,4],[35,5,35,6],[35,7,35,9],[35,10,35,11],[35,12,35,14],[11,4,11,6],[11,13,12,13],[11,14,11,16],[36,23,36,26],[36,27,38,27],[11,34,11,36],[41,0,41,1],[42,0,42,1],[73,8,74,8],[72,2,74,2],[11,19,11,21],[35,15,35,16],[36,22,38,22],[11,28,12,28],[81,12,81,14],[85,0,85,1],[72,3,72,6],[51,2,53,2],[51,8,51,11],[51,12,53,12],[51,13,51,16],[52,3,53,3],[52,4,52,6],[71,2,71,4],[65,0,65,1],[71,5,71,6],[71,7,71,9],[71,10,71,11],[69,0,69,48],[52,34,52,36],[51,32,53,32],[51,33,51,36],[51,1,53,1],[50,2,50,4],[72,1,74,1],[50,35,50,36],[50,22,50,24],[50,20,50,21],[48,0,48,59],[50,25,50,26],[50,5,50,6],[50,7,50,9],[50,10,50,11],[50,12,50,14],[50,15,50,16],[50,17,50,19],[50,27,50,29],[51,0,53,0],[58,52,58,59],[66,0,66,46],[67,0,67,46],[73,3,74,3],[51,47,53,47],[51,23,51,26],[52,24,52,26],[73,4,73,6],[45,0,45,46],[36,0,38,1],[39,0,39,1],[40,0,40,1],[35,42,35,44],[37,28,38,28],[37,29,37,31],[37,19,37,21],[44,0,44,1],[36,2,38,2],[36,3,36,6],[36,7,38,7],[36,8,36,11],[36,12,38,12],[36,13,36,16],[37,3,38,3],[37,4,37,6],[37,8,38,8],[37,24,37,26],[37,9,37,11],[36,33,36,36],[35,32,35,34],[37,34,37,36],[10,17,12,17],[9,37,9,39],[11,39,11,41],[11,29,11,31],[9,40,9,41],[10,37,12,37],[10,38,10,41],[10,12,12,12],[10,13,10,16],[10,18,10,21],[11,18,12,18],[86,0,86,26],[0,0,4,36],[10,32,12,32],[10,33,10,36],[10,2,12,2],[10,3,10,6],[10,28,10,31],[11,3,12,3],[9,2,9,4],[9,5,9,6],[9,30,9,31],[9,32,9,34],[9,35,9,36],[9,10,9,11],[10,7,12,7],[10,8,10,11],[11,8,12,8],[11,9,11,11],[9,20,9,21],[9,22,9,24],[9,25,9,26],[9,27,9,29],[10,0,12,0],[10,27,12,27],[102,48,102,51],[24,52,24,59],[25,52,25,59],[26,52,26,59],[27,52,27,59],[29,0,29,46],[30,0,30,46],[19,48,19,51],[19,52,19,59],[20,48,20,51],[20,52,20,59],[21,48,21,51],[21,52,21,59],[22,48,22,51],[22,52,22,59],[23,48,23,51],[23,52,23,59],[92,17,94,17],[96,48,96,51],[91,45,91,46],[80,12,80,14],[82,12,82,14],[83,12,83,14],[84,12,84,14],[92,48,94,51],[16,48,16,51],[17,48,17,51],[122,0,122,31],[123,0,123,31],[120,24,120,31],[114,0,114,59],[108,0,108,1],[109,0,109,1],[110,0,110,1],[117,20,119,23],[99,52,99,59],[100,52,100,59],[106,52,106,59],[107,52,107,59],[101,52,101,59],[101,48,101,51],[102,52,102,59],[109,48,109,51],[107,48,107,51],[117,24,119,31],[100,48,100,51],[106,48,106,51],[108,48,108,51],[93,43,94,43],[117,13,117,16],[78,19,78,26],[79,19,79,26],[80,19,80,26],[81,19,81,26],[82,19,82,26],[83,19,83,26],[84,19,84,26],[89,0,89,59],[96,0,96,1],[92,2,94,2],[92,3,92,6],[92,7,94,7],[91,7,91,9],[91,10,91,11],[91,12,91,14],[91,15,91,16],[91,17,91,19],[91,20,91,21],[91,42,91,44],[91,25,91,26],[91,27,91,29],[91,30,91,31],[93,44,93,46],[95,48,95,51],[98,52,98,59],[108,52,108,59],[109,52,109,59],[92,43,92,46],[93,28,94,28],[92,33,92,36],[92,47,94,47],[97,48,97,51],[98,48,98,51],[92,52,94,59],[95,52,95,59],[105,48,105,51],[105,52,105,59],[96,52,96,59],[97,52,97,59],[103,52,103,59],[104,52,104,59],[103,48,103,51],[104,48,104,51],[99,48,99,51],[92,38,92,41],[92,42,94,42]]}
[null,null,null,null,null,null,null,null,null,null,null,null,null,null,null,null,null,null,null,null,null,null,null,null,null,null,null,null,null,null,null,null,null,null,null,null,null,null,null,null,null,null,null,null,null,null,null,null,"Subsecretaría de Educación Básica\nDirección General de Desarrollo Curricular\nDirección de Fortalecimiento Curricular para la \nFormación Personal y Social en la Educación Básica\nEducación Especial"]
[]
[]
[]
[]
["Componente: 3. Equipamiento específico en beneficio de estudiantes con discapacidad"]
[]
["3.1 Dotar de material didáctico especializado para estudiantes con discapacidad"]
[]
[null,null,"Beneficiados USAER",null,null,{"$f":"'Servicios EE 2024'!B21","v":81},null,"Beneficiados CAM básico",null,null,{"$f":"'Servicios EE 2024'!C21","v":0},null,"Beneficiados CAM b con FpT",null,null,{"$f":"'Servicios EE 2024'!C23","v":28},null,"Beneficiados CAM laboral",null,null,{"$f":"'Servicios EE 2024'!D21","v":2},null,"Beneficiados CAPEP",null,null,{"$f":"'Servicios EE 2024'!E21","v":0},null,"Beneficiados CRIE",null,null,{"$f":"'Servicios EE 2024'!F21","v":0},null,"Beneficiados UOP",null,null,{"$f":"'Servicios EE 2024'!G21","v":0},null,"Beneficiados UAEBH",null,null,{"$f":"'Servicios EE 2024'!H21","v":0},null,"Beneficiados Otro",null,null,{"$f":"'Servicios EE 2024'!I21","v":0}]
["Tipo de materiales\n(seleccione)","Material adquirido","Cantidad a distribuir","USAER",null,null,null,"Cantidad a distribuir","CAM básico",null,null,null,"Cantidad a distribuir","CAM básico con FpT",null,null,null,"Cantidad a distribuir","CAM laboral",null,null,null,"Cantidad a distribuir","CAPEP",null,null,null,"Cantidad a distribuir","CRIE",null,null,null,"Cantidad a distribuir","UOP",null,null,null,"Cantidad a distribuir","UAEBH",null,null,null,"Cantidad a distribuir","Otro",null,null,null,"Nivel de avance de la acción","En caso de modificación, indique número de oficio",null,null,null,"Describa brevemente el impacto pedagógico que se obtuvo con esta acción"]
[null,null,null,"SEE","Estudiantes",null,null,null,"SEE","Estudiantes",null,null,null,"SEE","Estudiantes",null,null,null,"SEE","Estudiantes",null,null,null,"SEE","Estudiantes",null,null,null,"SEE","Estudiantes",null,null,null,"SEE","Estudiantes",null,null,null,"SEE","Estudiantes",null,null,null,"SEE","Estudiantes"]
[null,null,null,null,"M","H","T",null,null,"M","H","T",null,null,"M","H","T",null,null,"M","H","T",null,null,"M","H","T",null,null,"M","H","T",null,null,"M","H","T",null,null,"M","H","T",null,null,"M","H","T"]
["Paquetes con diversos materiales","Paquete para DV:  2 alfabeto braille, 2 paquete de fracciones en braille, 3 memorama en braille, 3 lotería braille, 3 mapa en relieve de México, 3 mapa en relieve de Durango, 3 mapamundis en relieve, juegos de mesa: 1 juego gato adaptado y un juego parchis adaptado para discapacidad visual. ",2,2,1,5,{"$f":"SUM(E14,F14)","v":6},0,0,0,0,{"$f":"SUM(J14,K14)","v":0},3,3,3,2,{"$f":"SUM(O14,P14)","v":5},0,0,0,0,{"$f":"SUM(T14,U14)","v":0},0,0,0,0,{"$f":"SUM(Y14,Z14)","v":0},0,0,0,0,{"$f":"SUM(AD14,AE14)","v":0},0,0,0,0,{"$f":"SUM(AI14,AJ14)","v":0},0,0,0,0,{"$f":"SUM(AN14,AO14)","v":0},0,0,0,0,{"$f":"SUM(AS14,AT14)","v":0},"Materiales adquiridos, falta entrega","N/A",null,null,null,"N/A"]
["Paquetes con diversos materiales","Paquete de Juguetes Montessori: 3 Cajas de clasificación cognitiva, 5 juegos de ensamble de madera de diversos campos semánticos: animales, figuras geométricas, verduras, transportes, profesiones.  ",0,0,0,0,{"$f":"SUM(E15,F15)","v":0},0,0,0,0,{"$f":"SUM(J15,K15)","v":0},5,5,104,159,{"$f":"SUM(O15,P15)","v":263},0,0,0,0,{"$f":"SUM(T15,U15)","v":0},0,0,0,0,{"$f":"SUM(Y15,Z15)","v":0},0,0,0,0,{"$f":"SUM(AD15,AE15)","v":0},0,0,0,0,{"$f":"SUM(AI15,AJ15)","v":0},0,0,0,0,{"$f":"SUM(AN15,AO15)","v":0},0,0,0,0,{"$f":"SUM(AS15,AT15)","v":0},"Materiales adquiridos, falta entrega","N/A",null,null,null,"N/A"]
["Paquetes con diversos materiales","Material para TEA: 3 tarjetas de horario visual, 3 calendario de anticipación, 3 temporalizadores",0,0,0,0,0,0,0,0,0,0,3,3,6,30,36,0,0,0,0,0,0,0,0,0,0,0,0,0,0,0,0,0,0,0,0,0,0,0,0,0,0,0,0,0,0,"Materiales adquiridos, falta entrega","N/A",null,null,null,"N/A"]
["Paquetes con diversos materiales","Paquete deportivo: 1 twister, 2 set de 3 postes de agilidad y entrenamiento deportivo 1.20m, 3 balones sonoros: 1 de futbol, 1 basquetbol, 1 voleibol, 1 kit de pelotas sensoriales: pelota de yoga de 75 cm con 2 mm de espesor, 1 paracaídas.",0,0,0,0,0,0,0,0,0,0,2,2,22,33,55,0,0,0,0,0,0,0,0,0,0,0,0,0,0,0,0,0,0,0,0,0,0,0,0,0,0,0,0,0,0,"Materiales adquiridos, falta entrega","N/A",null,null,null,"N/A"]
["Paquetes con diversos materiales","Paquete construcción: 3  Juegos de construcción con bolas y varillas magnéticas de 50 piezas, 3 kit de bloques de construcción LEGO primaria, 3 kit de bloques de construcción LEGO preescolar,  3 kits de bloques magnéticos de construcción en 3D, 1 arenal sensorial. ",0,0,0,0,0,0,0,0,0,0,6,6,224,374,598,0,0,0,0,0,0,0,0,0,0,0,0,0,0,0,0,0,0,0,0,0,0,0,0,0,0,0,0,0,0,"Materiales adquiridos, falta entrega","N/A",null,null,null,"N/A"]
["Paquetes con diversos materiales","Paquete Juegos de estrategia: 1 Jenga gigante, 2 dados de foamy de 50 cm, 1 Adigma, 1 desafío pin-pong, 1 apilamiento de tazas, 1 adivina quién, 1 gato, 1 parchis, 1 acrobat, 2 reloj de arena, 2 temporalizador de 60 min. ",0,0,0,0,0,0,0,0,0,0,5,5,178,297,475,0,0,0,0,0,0,0,0,0,0,0,0,0,0,0,0,0,0,0,0,0,0,0,0,0,0,0,0,0,0,"Materiales adquiridos, falta entrega","N/A",null,null,null,"N/A"]
["Paquetes con diversos materiales","Paquete sensorial: 1 Geoplano, 1 pizarrón magnético, 1 alfabeto de imán, 1 números de imán, 1 máquina de burbujas, 1 lotería de sonidos, 1 memoria electrónica de mano con luces y sonido. ",0,0,0,0,{"$f":"SUM(E20,F20)","v":0},0,0,0,0,{"$f":"SUM(J20,K20)","v":0},3,3,66,104,{"$f":"SUM(O20,P20)","v":170},0,0,0,0,{"$f":"SUM(T20,U20)","v":0},0,0,0,0,{"$f":"SUM(Y20,Z20)","v":0},0,0,0,0,{"$f":"SUM(AD20,AE20)","v":0},0,0,0,0,{"$f":"SUM(AI20,AJ20)","v":0},0,0,0,0,{"$f":"SUM(AN20,AO20)","v":0},0,0,0,0,{"$f":"SUM(AS20,AT20)","v":0},"Materiales adquiridos, falta entrega","N/A",null,null,null,"N/A"]
["Tableros de comunicación","Tableros de madera o plástico grueso con estuche para diferentes campos y contextos",50,5,2,28,30,0,0,0,0,0,21,4,85,142,227,0,0,0,0,0,0,0,0,0,0,0,0,0,0,0,0,0,0,0,0,0,0,0,0,0,0,0,0,0,0,"Materiales adquiridos, falta entrega","N/A",null,null,null,"N/A"]
["Regletas y punzón","Regleta y punzón metálicos tamaño carta resistentes",8,2,0,3,3,0,0,0,0,0,1,1,1,0,1,0,0,0,0,0,0,0,0,0,0,0,0,0,0,0,0,0,0,0,0,0,0,0,0,0,0,0,0,0,0,"Materiales adquiridos, falta entrega","N/A",null,null,null,"N/A"]
[" Ábaco Cramer","Ábaco de material resistente con estuche",6,2,0,3,3,0,0,0,0,0,4,2,1,1,2,0,0,0,0,0,0,0,0,0,0,0,0,0,0,0,0,0,0,0,0,0,0,0,0,0,0,0,0,0,0,"Materiales adquiridos, falta entrega","N/A",null,null,null,"N/A"]
["Regletas cuisenaire","Regletas de material resistente ",18,18,176,458,634,0,0,0,0,0,5,1,28,43,71,0,0,0,0,0,0,0,0,0,0,0,0,0,0,0,0,0,0,0,0,0,0,0,0,0,0,0,0,0,0,"Materiales adquiridos, falta entrega","N/A",null,null,null,"N/A"]
["Caja aritmética","Caja de madera resistente ",9,6,2,7,9,0,0,0,0,0,5,3,3,2,5,0,0,0,0,0,0,0,0,0,0,0,0,0,0,0,0,0,0,0,0,0,0,0,0,0,0,0,0,0,0,"Materiales adquiridos, falta entrega","N/A",null,null,null,"N/A"]
["Material didáctico concreto","Lámpara de lava",0,0,0,0,0,0,0,0,0,0,15,3,142,242,384,0,0,0,0,0,0,0,0,0,0,0,0,0,0,0,0,0,0,0,0,0,0,0,0,0,0,0,0,0,0,"Materiales adquiridos, falta entrega","N/A",null,null,null,"N/A"]
["Paquetes con diversos materiales","Paquete lectoescritura de 5 silabarios, 5 alfabeto móvil, 5 juegos de números móviles de plástico, 5 tarjetas de abecedario por asociación. ",16,16,176,427,603,0,0,0,0,0,0,0,0,0,0,0,0,0,0,0,0,0,0,0,0,0,0,0,0,0,0,0,0,0,0,0,0,0,0,0,0,0,0,0,0,"Materiales adquiridos, falta entrega","N/A",null,null,null,"N/A"]
[null,"Lupa ",0,0,0,0,0,0,0,0,0,0,5,4,3,2,5,0,0,0,0,0,0,0,0,0,0,0,0,0,0,0,0,0,0,0,0,0,0,0,0,0,0,0,0,0,0,"Materiales adquiridos, falta entrega","N/A",null,null,null,"N/A"]
["Total",null,0,{"$f":"SUM(D14:D28)","v":51},357,931,1288,0,0,0,0,0,83,45,866,1431,2297,0,0,0,0,0,0,0,0,0,0,0,0,0,0,0,0,0,0,0,0,0,0,0,0,0,0,0,0,0,0]
["En caso de requerir alguna precisión o aclaración, describa brevemente: "]
["MATERIALES EN ALMACEN, FALTA ENTREGA A LOS SERVICIOS BENEFICIARIOS"]
[]
[]
["3.2 Dotar de material bibliográfico para estudiantes con discapacidad "]
[]
[null,null,"Beneficiados USAER",null,null,{"$f":"'Servicios EE 2024'!B21","v":81},null,"Beneficiados CAM básico",null,null,{"$f":"'Servicios EE 2024'!C21","v":0},null,"Beneficiados CAM b con FpT",null,null,{"$f":"'Servicios EE 2024'!C23","v":28},null,"Beneficiados CAM laboral",null,null,{"$f":"'Servicios EE 2024'!D21","v":2},null,"Beneficiados CAPEP",null,null,{"$f":"'Servicios EE 2024'!E21","v":0},null,"Beneficiados CRIE",null,null,{"$f":"'Servicios EE 2024'!F21","v":0},null,"Beneficiados UOP",null,null,{"$f":"'Servicios EE 2024'!G21","v":0},null,"Beneficiados UAEBH",null,null,{"$f":"'Servicios EE 2024'!H21","v":0},null,"Beneficiados Otro",null,null,{"$f":"'Servicios EE 2024'!I21","v":0}]
["Tipo de libros\n(seleccione)",null,"Cantidad a distribuir","USAER",null,null,null,"Cantidad a distribuir","CAM básico",null,null,null,"Cantidad a distribuir","CAM básico con FpT",null,null,null,"Cantidad a distribuir","CAM laboral",null,null,null,"Cantidad a distribuir","CAPEP",null,null,null,"Cantidad a distribuir","CRIE",null,null,null,"Cantidad a distribuir","UOP",null,null,null,"Cantidad a distribuir","UAEBH",null,null,null,"Cantidad a distribuir","Otro",null,null,null,"Nivel de avance de la acción","En caso de modificación, indique número de oficio",null,null,null,"Describa brevemente el impacto pedagógico que se obtuvo con esta acción"]
[null,null,null,"SEE","Estudiantes",null,null,null,"SEE","Estudiantes",null,null,null,"SEE","Estudiantes",null,null,null,"SEE","Estudiantes",null,null,null,"SEE","Estudiantes",null,null,null,"SEE","Estudiantes",null,null,null,"SEE","Estudiantes",null,null,null,"SEE","Estudiantes",null,null,null,"SEE","Estudiantes"]
[null,null,null,null,"M","H","T",null,null,"M","H","T",null,null,"M","H","T",null,null,"M","H","T",null,null,"M","H","T",null,null,"M","H","T",null,null,"M","H","T",null,null,"M","H","T",null,null,"M","H","T"]
["Especializados en atención educativa",null,2,1,1,21,{"$f":"SUM(E40,F40)","v":22},0,0,0,0,{"$f":"SUM(J40,K40)","v":0},0,0,0,0,{"$f":"SUM(O40,P40)","v":0},0,0,0,0,{"$f":"SUM(T40,U40)","v":0},0,0,0,0,{"$f":"SUM(Y40,Z40)","v":0},0,0,0,0,{"$f":"SUM(AD40,AE40)","v":0},0,0,0,0,{"$f":"SUM(AI40,AJ40)","v":0},0,0,0,0,{"$f":"SUM(AN40,AO40)","v":0},0,0,0,0,{"$f":"SUM(AS40,AT40)","v":0},"Materiales adquiridos, falta entrega","N/A",null,null,null,"N/A"]
["Especializados en discapacidad",null,2,1,4,14,{"$f":"SUM(E41,F41)","v":18},0,0,0,0,{"$f":"SUM(J41,K41)","v":0},0,0,0,0,{"$f":"SUM(O41,P41)","v":0},0,0,0,0,{"$f":"SUM(T41,U41)","v":0},0,0,0,0,{"$f":"SUM(Y41,Z41)","v":0},0,0,0,0,{"$f":"SUM(AD41,AE41)","v":0},0,0,0,0,{"$f":"SUM(AI41,AJ41)","v":0},0,0,0,0,{"$f":"SUM(AN41,AO41)","v":0},0,0,0,0,{"$f":"SUM(AS41,AT41)","v":0},"Materiales adquiridos, falta entrega","N/A",null,null,null,"N/A"]
["Especializados en atención educativa",null,2,1,4,11,15,0,0,0,0,0,0,0,0,0,0,0,0,0,0,0,0,0,0,0,0,0,0,0,0,0,0,0,0,0,0,0,0,0,0,0,0,0,0,0,0,"Materiales adquiridos, falta entrega","N/A",null,null,null,"N/A"]
["Especializados en atención educativa",null,2,1,11,20,31,0,0,0,0,0,0,0,0,0,0,0,0,0,0,0,0,0,0,0,0,0,0,0,0,0,0,0,0,0,0,0,0,0,0,0,0,0,0,0,0,"Materiales adquiridos, falta entrega","N/A",null,null,null,"N/A"]
["En formatos accesibles",null,2,2,2,5,7,0,0,0,0,0,0,0,0,0,0,0,0,0,0,0,0,0,0,0,0,0,0,0,0,0,0,0,0,0,0,0,0,0,0,0,0,0,0,0,0,"Materiales adquiridos, falta entrega","N/A",null,null,null,"N/A"]
["Total",null,{"$f":"SUM(C40:C44)","v":10},6,22,71,93,0,0,0,0,0,0,0,0,0,0,0,0,0,0,0,0,0,0,0,0,0,0,0,0,0,0,0,0,0,0,0,0,0,0,0,0,0,0,0,0]
["En caso de requerir alguna precisión o aclaración, describa brevemente: "]
["MATERIALES EN ALMACEN, FALTA PROGRAMACIÓN ENTREGA A LOS SERVICIOS BENEFICIARIOS"]
[]
["3.5 Dotar de equipo adaptado, tecnológico y/o multimedia para estudiantes con discapacidad "]
[]
[null,null,"Beneficiados USAER",null,null,{"$f":"'Servicios EE 2024'!B21","v":81},null,"Beneficiados CAM básico",null,null,{"$f":"'Servicios EE 2024'!C21","v":0},null,"Beneficiados CAM b con FpT",null,null,{"$f":"'Servicios EE 2024'!C23","v":28},null,"Beneficiados CAM laboral",null,null,{"$f":"'Servicios EE 2024'!D21","v":2},null,"Beneficiados CAPEP",null,null,{"$f":"'Servicios EE 2024'!E21","v":0},null,"Beneficiados CRIE",null,null,{"$f":"'Servicios EE 2024'!F21","v":0},null,"Beneficiados UOP",null,null,{"$f":"'Servicios EE 2024'!G21","v":0},null,"Beneficiados UAEBH",null,null,{"$f":"'Servicios EE 2024'!H21","v":0},null,"Beneficiados Otro",null,null,{"$f":"'Servicios EE 2024'!I21","v":0}]
["Tipo de equipo\n(seleccione)","Características generales de los equipos","Cantidad a distribuir","USAER",null,null,null,"Cantidad a distribuir","CAM básico",null,null,null,"Cantidad a distribuir","CAM básico con FpT",null,null,null,"Cantidad a distribuir","CAM laboral",null,null,null,"Cantidad a distribuir","CAPEP",null,null,null,"Cantidad a distribuir","CRIE",null,null,null,"Cantidad a distribuir","UOP",null,null,null,"Cantidad a distribuir","UAEBH",null,null,null,"Cantidad a distribuir","Otro",null,null,null,"Nivel de avance de la acción","En caso de modificación, indique número de oficio",null,null,null,"Describa brevemente el impacto pedagógico que se obtuvo con esta acción"]
[null,null,null,"SEE","Estudiantes",null,null,null,"SEE","Estudiantes",null,null,null,"SEE","Estudiantes",null,null,null,"SEE","Estudiantes",null,null,null,"SEE","Estudiantes",null,null,null,"SEE","Estudiantes",null,null,null,"SEE","Estudiantes",null,null,null,"SEE","Estudiantes",null,null,null,"SEE","Estudiantes"]
[null,null,null,null,"M","H","T",null,null,"M","H","T",null,null,"M","H","T",null,null,"M","H","T",null,null,"M","H","T",null,null,"M","H","T",null,null,"M","H","T",null,null,"M","H","T",null,null,"M","H","T"]
["Cañón","Proyector lcd, 3400 lúmenes, brillo de proyector, lámpara UHE 210 vatios, tecnología de proyección 3LCD, resolución de proyección XGA (1024 x 768), resolución de contraste 15000:1 dinámico",19,16,138,344,{"$f":"SUM(E55,F55)","v":482},0,0,0,0,{"$f":"SUM(J55,K55)","v":0},13,12,269,468,{"$f":"SUM(O55,P55)","v":737},0,0,0,0,{"$f":"SUM(T55,U55)","v":0},0,0,0,0,{"$f":"SUM(Y55,Z55)","v":0},0,0,0,0,{"$f":"SUM(AD55,AE55)","v":0},0,0,0,0,{"$f":"SUM(AI55,AJ55)","v":0},0,0,0,0,{"$f":"SUM(AN55,AO55)","v":0},0,0,0,0,{"$f":"SUM(AS55,AT55)","v":0},"Materiales adquiridos, falta entrega","N/A",null,null,null,"N/A"]
["Equipo de cómputo","Laptop, procesador intel core i5-1235 U 12 th gen (12 MB CACHÉ, 10 core 12 threads 4.40 Ghz turbo). Sistema operativo windows 11 home single en español. Microsoft office profesional 2021 en español. Adaptador de C.A.65 watt. Memoria ram 8 gb DDR4 3200 mhz. pantalla 16 pulgadas fhd (1920 x 1200) 60 hz led antirreflejo. teclado en español, tarjeta inalámbrica wifi 6E AX211, 2X2, 802.11ax, bluetooth.",8,8,45,139,{"$f":"SUM(E56,F56)","v":184},0,0,0,0,{"$f":"SUM(J56,K56)","v":0},3,3,37,63,{"$f":"SUM(O56,P56)","v":100},1,1,33,33,{"$f":"SUM(T56,U56)","v":66},0,0,0,0,{"$f":"SUM(Y56,Z56)","v":0},0,0,0,0,{"$f":"SUM(AD56,AE56)","v":0},0,0,0,0,{"$f":"SUM(AI56,AJ56)","v":0},0,0,0,0,{"$f":"SUM(AN56,AO56)","v":0},0,0,0,0,{"$f":"SUM(AS56,AT56)","v":0},"Materiales adquiridos, falta entrega","N/A",null,null,null,"N/A"]
["Equipo de cómputo","Pc escritorio: Intel®️ Core™️ i5 14500T vPro®️ (24MB cache, 14 cores, 20 threads, up to 4.8 GHz)\nWindows 11 Pro, inglés, español, francés y portugués de Brasil\nIntel®️ Graphics\n8 GB: 1 x 8 GB, DDR5\n256 GB, M.2 2230, PCIe NVMe, SSD, Class 35\n23.8 pulgadas pantalla.",1,1,2,8,10,0,0,0,0,0,10,10,175,251,426,0,0,0,0,0,0,0,0,0,0,0,0,0,0,0,0,0,0,0,0,0,0,0,0,0,0,0,0,0,0,"Materiales adquiridos, falta entrega","N/A",null,null,null,"N/A"]
["Impresora","Multifuncional de inyección de tinta continua, volumen de impresión mensual 500 páginas aproximadamente, velocidad de impresión en negro 10 ppm, velocidad de impresión a color 5 ppm, interface ethernet integrada.",13,13,89,248,337,0,0,0,0,0,15,15,264,391,655,1,1,33,33,66,0,0,0,0,0,0,0,0,0,0,0,0,0,0,0,0,0,0,0,0,0,0,0,0,0,"Materiales adquiridos, falta entrega","N/A",null,null,null,"N/A"]
["Enmicadora","Enmicadora térmica fusión ancho 22 cm carta, 3.5 milésimas, dimensiones 14, 2L, x 12,6 w x 41, 4h centímetros.",1,1,11,24,{"$f":"SUM(E59,F59)","v":35},0,0,0,0,{"$f":"SUM(J59,K59)","v":0},6,6,123,199,{"$f":"SUM(O59,P59)","v":322},0,0,0,0,{"$f":"SUM(T59,U59)","v":0},0,0,0,0,{"$f":"SUM(Y59,Z59)","v":0},0,0,0,0,{"$f":"SUM(AD59,AE59)","v":0},0,0,0,0,{"$f":"SUM(AI59,AJ59)","v":0},0,0,0,0,{"$f":"SUM(AN59,AO59)","v":0},0,0,0,0,{"$f":"SUM(AS59,AT59)","v":0},"Materiales adquiridos, falta entrega","N/A",null,null,null,"N/A"]
["Reproductor de video","Smart tv, 50 pulgadas, diseño flat-FHD, resolución: 1920 x 1080, 16-7 70 hz, white color enhancer, mega contraste, connect share, POP integrado IP video close.",0,0,0,0,0,0,0,0,0,0,4,4,58,74,132,0,0,0,0,0,0,0,0,0,0,0,0,0,0,0,0,0,0,0,0,0,0,0,0,0,0,0,0,0,0,"Materiales adquiridos, falta entrega","N/A",null,null,null,"N/A"]
["Otro (especifique)","Teclado adaptado (Braille) para equipo computo.",4,4,3,6,9,0,0,0,0,0,7,7,4,5,9,0,0,0,0,0,0,0,0,0,0,0,0,0,0,0,0,0,0,0,0,0,0,0,0,0,0,0,0,0,0,"Materiales adquiridos, falta entrega","N/A",null,null,null,"N/A"]
["Otro (especifique)","Cámara video, cámara web para PC y portátil, 1080 p - micrófono,  conexión USB, 1920x1080 hd resolución, clip adaptador de pantalla.",0,0,0,0,0,0,0,0,0,0,1,1,29,51,80,0,0,0,0,0,0,0,0,0,0,0,0,0,0,0,0,0,0,0,0,0,0,0,0,0,0,0,0,0,0,"Materiales adquiridos, falta entrega","N/A",null,null,null,"N/A"]
["Otro (especifique)","Pantalla interactiva, 75 M5A, conectividad rj-45 hdmi y vga, 165 x 92.8 cm, resolución de pantalla de 3840 x 2160 pixeles y retroliuminación led, sistema operativo Android 8.0 preinstalado.",0,0,0,0,0,0,0,0,0,0,6,6,165,269,434,0,0,0,0,0,0,0,0,0,0,0,0,0,0,0,0,0,0,0,0,0,0,0,0,0,0,0,0,0,0,"Materiales adquiridos, falta entrega","N/A",null,null,null,"N/A"]
["Otro (especifique)","Engargoladora, para arillo metálico y espiral.",1,1,11,24,35,0,0,0,0,0,0,0,0,0,0,0,0,0,0,0,0,0,0,0,0,0,0,0,0,0,0,0,0,0,0,0,0,0,0,0,0,0,0,0,0,"Materiales adquiridos, falta entrega","N/A",null,null,null,"N/A"]
["Otro (especifique)","Magnificador de pantalla, 3d lupa black, 18 x 15 x 2 cm, inalámbrica con peso del producto de 1kg.",3,1,1,2,3,0,0,0,0,0,0,0,0,0,0,0,0,0,0,0,0,0,0,0,0,0,0,0,0,0,0,0,0,0,0,0,0,0,0,0,0,0,0,0,0,"Materiales adquiridos, falta entrega","N/A",null,null,null,"N/A"]
["Total",null,{"$f":"SUM(C55:C65)","v":50},45,300,795,1095,0,0,0,0,0,65,64,1124,1771,2895,2,2,66,66,132,0,0,0,0,0,0,0,0,0,0,0,0,0,0,0,0,0,0,0,0,0,0,0,0,0]
["En caso de requerir alguna precisión o aclaración, describa brevemente: "]
["MATERIALES EN ALMACEN, FALTA ENTREGA A LOS SERVICIOS BENEFICIARIOS"]
[]
["3.6 Adquirir herramientas, utensilios, enseres domésticos y aparatos electrónicos que se requieren para impartir talleres laborales que se ofertan en los Centros de Atención Múltiple laboral y con Formación para el Trabajo"]
[]
[null,null,"Beneficiados CAM b con FpT",null,null,{"$f":"'Servicios EE 2024'!C23","v":28},null,"Beneficiados CAM laboral",null,null,{"$f":"'Servicios EE 2024'!D21","v":2}]
["Taller a equipar","Herramienta, utensilio, mobiliario o aparato","Cantidad a distribuir","CAM básico con FpT",null,null,null,"Cantidad a distribuir","CAM laboral",null,null,null,"Nivel de avance de la acción",null,null,"En caso de modificación, indique número de oficio",null,null,null,"Describa brevemente el impacto pedagógico que se obtuvo con esta acción"]
[null,null,null,"SEE","Estudiantes",null,null,null,"SEE","Estudiantes"]
[null,null,null,null,"M","H","T",null,null,"M","H","T"]
["Taller de lavandería","1 Lavadora, 1 Secadora, 1 Estante de metal (cesta)",6,6,93,126,{"$f":"SUM(E76,F76)","v":219},0,0,0,0,{"$f":"SUM(J76,K76)","v":0},"Materiales adquiridos, falta entrega",null,null,"N/A",null,null,null,"N/A"]
["Taller de Cocina","1 Juego de vaporeras, 1 Olla presto 6lts,  1 Sarten 6 lts con tapa, 100 Platos hondos, 100 platos extendidos, 100 vasos de vidrio, 100 tazas de ceramica, 100 juego de cubiertos, 2  tanques de gas, 1 cafetera 20 tazas, 1 licuadora industrial, 1 batidora de pedestal, 20 tenedores, 1 comal, 25 cucharas grandes, 15 cuchillos, 1 estufa industrial, 2 tablas para picar, 2 tarja doble tina",8,8,130,180,{"$f":"SUM(E77,F77)","v":310},0,0,0,0,{"$f":"SUM(J77,K77)","v":0},"Materiales adquiridos, falta entrega",null,null,"N/A",null,null,null,"N/A"]
["Taller de repostería","1 Máquina para hacer churros, 1 crepera, 3  moldes para repostería, 10 mandiles, 1  cazo de cobre, 4 cucharon, 1 escurridor para aceite, 2 vitroleras plástico, 2 cucharones para agua, 5 tenazas, 1 freidora, 1 maquina palomera, 1 batidora industrial, 1 batería de sartenes, 1 moldes para pastel, 1 horno electrico, 1 licuadora, 1 batidora manual, 1 juego de tazas medidoras.",8,8,172,265,437,0,0,0,0,0,"Materiales adquiridos, falta entrega",null,null,"N/A",null,null,null,"N/A"]
["Empaquetado","3 Pistola de silicón Industrial, 2 Cortadoras, 2 Tijeras eléctricas, 2 Selladora industrial, 1 Aparato para emplayado de alimentos",1,1,19,26,45,0,0,0,0,0,"Materiales adquiridos, falta entrega",null,null,"N/A",null,null,null,"N/A"]
["Manualidades","1 ENMICADORA, 2 GUILLOTINA",2,2,27,33,60,0,0,0,0,0,"Materiales adquiridos, falta entrega",null,null,"N/A",null,null,null,"N/A"]
["Jardinería/Herramientas","1 Malla sombra 6x6, 2 Extintores, 1 Diablito, 1 Escalera de tripie 3 mts, 1 Tijeras para podar, 1 Asadones, 1 Carretilla, 1 Pala, 1 Desbrozadora, 1 Rastrillos, 1 Mangueras, 1 Caja de herramientas",5,5,161,271,432,2,2,54,67,121,"Materiales adquiridos, falta entrega",null,null,"N/A",null,null,null,"N/A"]
["Carpintería","1 Lijadora de 1/4, 1 Martillo de carpintero, 1 Serruchos de costilla de hoja, 1 Juego de brocas p/router, 1 Cintas metricas, 1 Taladros de 3/8, Berbiqui, 1 Caladora eléctrica, 1 Clavadora neumática, 1 Pistola de aire, 1 Cepillos, 1 Escofinas, 1 Escuadras de 8\", 1 Router dos manos, 1 Router una mano, 1 Compresor, 1 Pulidora, 1 Disco p/sierra diente diamante 10\" entrada 5/8, 1 Sierra circular, 1 Taladro inhalámbrico, 1 Sierra de banco, 1 Sierra Ingletadora.",4,4,80,122,202,2,2,54,67,121,"Materiales adquiridos, falta entrega",null,null,"N/A",null,null,null,"N/A"]
["Corte y confección ","1 Máquina remalladora industrial de 5 hilos, 1 Máquina remalladora industrial  MC 500E, 1 Máquina estampadora, 2 Plancha industrial de vapor",0,0,0,0,0,2,2,54,67,121,"Materiales adquiridos, falta entrega",null,null,"N/A",null,null,null,"N/A"]
["Autolavado","1 HIDROLAVADORA, 1 TANQUE ESPUMADOR, 1 ASPOIRADORA.",1,1,14,21,35,0,0,0,0,0,"Materiales adquiridos, falta entrega",null,null,"N/A",null,null,null,"N/A"]
["Taller Panadería","1 Batidora industrial, 1 Licuadora industrial,  1 Estufa 6 quemadores, 1 Refrigerador, 1 Maquina para donas, 1 Freidora de aceite,  1 Microondas",7,7,97,129,226,1,1,33,33,66,"Materiales adquiridos, falta entrega",null,null,"N/A",null,null,null,"N/A"]
["Total",null,{"$f":"SUM(C76:C85)","v":42},42,793,1173,1966,7,7,195,234,429]
["En caso de requerir alguna precisión o aclaración, describa brevemente: "]
["MATERIALES EN ALMACEN, FALTA ENTREGA A LOS SERVICIOS BENEFICIARIOS"]
[]
["3.9 Dotar de mobiliario ordinario y/o adaptado para las y los estudiantes con discapacidad "]
[]
[null,null,"Beneficiados USAER",null,null,{"$f":"'Servicios EE 2024'!B21","v":81},null,"Beneficiados CAM básico",null,null,{"$f":"'Servicios EE 2024'!C21","v":0},null,"Beneficiados CAM b con FpT",null,null,{"$f":"'Servicios EE 2024'!C23","v":28},null,"Beneficiados CAM laboral",null,null,{"$f":"'Servicios EE 2024'!D21","v":2},null,"Beneficiados CAPEP",null,null,{"$f":"'Servicios EE 2024'!E21","v":0},null,"Beneficiados CRIE",null,null,{"$f":"'Servicios EE 2024'!F21","v":0},null,"Beneficiados UOP",null,null,{"$f":"'Servicios EE 2024'!G21","v":0},null,"Beneficiados UAEBH",null,null,{"$f":"'Servicios EE 2024'!H21","v":0},null,"Beneficiados Otro",null,null,{"$f":"'Servicios EE 2024'!I21","v":0}]
["Especifique el tipo de mobiliario",null,"Cantidad a distribuir","USAER",null,null,null,"Cantidad a distribuir","CAM básico",null,null,null,"Cantidad a distribuir","CAM básico con FpT",null,null,null,"Cantidad a distribuir","CAM laboral",null,null,null,"Cantidad a distribuir","CAPEP",null,null,null,"Cantidad a distribuir","CRIE",null,null,null,"Cantidad a distribuir","UOP",null,null,null,"Cantidad a distribuir","UAEBH",null,null,null,"Cantidad a distribuir","Otro",null,null,null,"Nivel de avance de la acción","En caso de modificación, indique número de oficio",null,null,null,"Describa brevemente el impacto pedagógico que se obtuvo con esta acción"]
[null,null,null,"SEE","Estudiantes",null,null,null,"SEE","Estudiantes",null,null,null,"SEE","Estudiantes",null,null,null,"SEE","Estudiantes",null,null,null,"SEE","Estudiantes",null,null,null,"SEE","Estudiantes",null,null,null,"SEE","Estudiantes",null,null,null,"SEE","Estudiantes",null,null,null,"SEE","Estudiantes"]
[null,null,null,null,"M","H","T",null,null,"M","H","T",null,null,"M","H","T",null,null,"M","H","T",null,null,"M","H","T",null,null,"M","H","T",null,null,"M","H","T",null,null,"M","H","T",null,null,"M","H","T"]
["Pintarrón  1.50 x 90 cm",null,66,14,93,238,{"$f":"SUM(E96,F96)","v":331},0,0,0,0,{"$f":"SUM(J96,K96)","v":0},23,9,156,268,{"$f":"SUM(O96,P96)","v":424},0,0,0,0,{"$f":"SUM(T96,U96)","v":0},0,0,0,0,{"$f":"SUM(Y96,Z96)","v":0},0,0,0,0,{"$f":"SUM(AD96,AE96)","v":0},0,0,0,0,{"$f":"SUM(AI96,AJ96)","v":0},0,0,0,0,{"$f":"SUM(AN96,AO96)","v":0},0,0,0,0,{"$f":"SUM(AS96,AT96)","v":0},"Materiales adquiridos, falta entrega","N/A",null,null,null,"N/A"]
["Sillas adaptadas para PCI",null,0,0,0,0,{"$f":"SUM(E97,F97)","v":0},0,0,0,0,{"$f":"SUM(J97,K97)","v":0},5,1,13,23,{"$f":"SUM(O97,P97)","v":36},0,0,0,0,{"$f":"SUM(T97,U97)","v":0},0,0,0,0,{"$f":"SUM(Y97,Z97)","v":0},0,0,0,0,{"$f":"SUM(AD97,AE97)","v":0},0,0,0,0,{"$f":"SUM(AI97,AJ97)","v":0},0,0,0,0,{"$f":"SUM(AN97,AO97)","v":0},0,0,0,0,{"$f":"SUM(AS97,AT97)","v":0},"Materiales adquiridos, falta entrega","N/A",null,null,null,"N/A"]
["Mesa trapezoidal",null,0,0,0,0,0,0,0,0,0,0,10,1,29,55,84,0,0,0,0,0,0,0,0,0,0,0,0,0,0,0,0,0,0,0,0,0,0,0,0,0,0,0,0,0,0,"Materiales adquiridos, falta entrega","N/A",null,null,null,"N/A"]
["Cambiador de pañal de adulto para baño",null,0,0,0,0,0,0,0,0,0,0,6,4,62,94,156,0,0,0,0,0,0,0,0,0,0,0,0,0,0,0,0,0,0,0,0,0,0,0,0,0,0,0,0,0,0,"Materiales adquiridos, falta entrega","N/A",null,null,null,"N/A"]
["Sillas para alumno",null,0,0,0,0,0,0,0,0,0,0,40,1,29,51,80,0,0,0,0,0,0,0,0,0,0,0,0,0,0,0,0,0,0,0,0,0,0,0,0,0,0,0,0,0,0,"Materiales adquiridos, falta entrega","N/A",null,null,null,"N/A"]
["Mesas binarias",null,0,0,0,0,0,0,0,0,0,0,20,1,29,51,80,0,0,0,0,0,0,0,0,0,0,0,0,0,0,0,0,0,0,0,0,0,0,0,0,0,0,0,0,0,0,"Materiales adquiridos, falta entrega","N/A",null,null,null,"N/A"]
["Mesas grandes para taller",null,0,0,0,0,{"$f":"SUM(E102,F102)","v":0},0,0,0,0,{"$f":"SUM(J102,K102)","v":0},3,1,29,51,{"$f":"SUM(O102,P102)","v":80},0,0,0,0,{"$f":"SUM(T102,U102)","v":0},0,0,0,0,{"$f":"SUM(Y102,Z102)","v":0},0,0,0,0,{"$f":"SUM(AD102,AE102)","v":0},0,0,0,0,{"$f":"SUM(AI102,AJ102)","v":0},0,0,0,0,{"$f":"SUM(AN102,AO102)","v":0},0,0,0,0,{"$f":"SUM(AS102,AT102)","v":0},"Materiales adquiridos, falta entrega","N/A",null,null,null,"N/A"]
["Silla ordinaria",null,0,0,0,0,0,0,0,0,0,0,37,3,48,67,115,0,0,0,0,0,0,0,0,0,0,0,0,0,0,0,0,0,0,0,0,0,0,0,0,0,0,0,0,0,0,"Materiales adquiridos, falta entrega","N/A",null,null,null,"N/A"]
["Mesa ordinaria",null,0,0,0,0,0,0,0,0,0,0,14,3,48,67,115,0,0,0,0,0,0,0,0,0,0,0,0,0,0,0,0,0,0,0,0,0,0,0,0,0,0,0,0,0,0,"Materiales adquiridos, falta entrega","N/A",null,null,null,"N/A"]
["Atril de madera",null,0,0,0,0,0,0,0,0,0,0,1,1,19,26,45,0,0,0,0,0,0,0,0,0,0,0,0,0,0,0,0,0,0,0,0,0,0,0,0,0,0,0,0,0,0,"Materiales adquiridos, falta entrega","N/A",null,null,null,"N/A"]
["Bipedestador",null,0,0,0,0,0,0,0,0,0,0,3,1,5,2,7,0,0,0,0,0,0,0,0,0,0,0,0,0,0,0,0,0,0,0,0,0,0,0,0,0,0,0,0,0,0,"Materiales adquiridos, falta entrega","N/A",null,null,null,"N/A"]
["Silla de plástico",null,0,0,0,0,0,0,0,0,0,0,10,1,15,20,35,0,0,0,0,0,0,0,0,0,0,0,0,0,0,0,0,0,0,0,0,0,0,0,0,0,0,0,0,0,0,"Materiales adquiridos, falta entrega","N/A",null,null,null,"N/A"]
["Mesa de acero inoxidable",null,0,0,0,0,0,0,0,0,0,0,5,2,66,105,171,10,1,33,33,66,0,0,0,0,0,0,0,0,0,0,0,0,0,0,0,0,0,0,0,0,0,0,0,0,0,"Materiales adquiridos, falta entrega","N/A",null,null,null,"N/A"]
["Estantes metálicos",null,0,0,0,0,0,0,0,0,0,0,21,5,66,108,174,0,0,0,0,0,0,0,0,0,0,0,0,0,0,0,0,0,0,0,0,0,0,0,0,0,0,0,0,0,0,"Materiales adquiridos, falta entrega","N/A",null,null,null,"N/A"]
["Mueble organizador de madera",null,0,0,0,0,0,0,0,0,0,0,2,1,28,43,71,0,0,0,0,0,0,0,0,0,0,0,0,0,0,0,0,0,0,0,0,0,0,0,0,0,0,0,0,0,0,"Materiales adquiridos, falta entrega","N/A",null,null,null,"N/A"]
["Total",null,66,{"$f":"SUM(D96:D110)","v":14},93,238,331,0,0,0,0,0,200,35,642,1031,1673,10,1,33,33,66,0,0,0,0,0,0,0,0,0,0,0,0,0,0,0,0,0,0,0,0,0,0,0,0,0]
["En caso de requerir alguna precisión o aclaración, describa brevemente: "]
["MATERIALES EN ALMACEN, FALTA ENTREGA A LOS SERVICIOS BENEFICIARIOS"]
[]
["3.10 Adquirir equipamiento y materiales para aulas multisensoriales"]
[]
[null,null,"Beneficiados CAM básico",null,null,{"$f":"'Servicios EE 2024'!C21","v":0},null,"Beneficiados CAM b con FpT",null,null,{"$f":"'Servicios EE 2024'!C23","v":28},null,"Beneficiados CAM laboral",null,null,{"$f":"'Servicios EE 2024'!D21","v":2}]
["Material adquirido",null,"Cantidad a distribuir","CAM básico",null,null,null,"Cantidad a distribuir","CAM básico con FpT",null,null,null,"Cantidad a distribuir","CAM laboral",null,null,null,"Nivel de avance de la acción",null,null,"En caso de modificación, indique número de oficio",null,null,null,"Describa brevemente el impacto pedagógico que se obtuvo con esta acción"]
[null,null,null,"SEE","Estudiantes",null,null,null,"SEE","Estudiantes",null,null,null,"SEE","Estudiantes"]
[null,null,null,null,"M","H","T",null,null,"M","H","T",null,null,"M","H","T"]
["PAQUETE 1 \n1 COLUMPIO GIRATORIO DE 100 A 300 KGS; \n1 COLUMPIO RECTANGULAR 1 METRO POR 60 CMS; \n1 COLUMPIO DE DISCO; \n1 COLUMPIO DE CUERDA DE 2 MTS; \n2 ESPALDERA HORIZONTAL Y VERTICAL; \n5 PELOTAS DE PESO; \n5 COLCHONETAS DE 2 X 2; \n2 TRAMPOLÍN DE 90 CMS DE DIAMETRO; \n1 BRINCOLIN 3 METROS DE DIAMETRO; \n3 PELOTA DE EQUILIBRIO;\n 1 RULO DE ESTIMULACIÓN DE 1 METRO DE DIAMETRO;\n 2 PISTOLA DE MASAJE; \n2 PELOTA DE BOBATH 75 CM; \n1 ESPEJO DE PARED; ",null,0,0,0,0,{"$f":"SUM(E121,F121)","v":0},10,10,208,287,{"$f":"SUM(J121,K121)","v":495},0,0,0,0,{"$f":"SUM(O121,P121)","v":0},"Materiales adquiridos, falta entrega",null,null,"N/A",null,null,null,"N/A"]
["Total",null,{"$f":"SUM(C121:C121)","v":0},0,0,0,0,10,10,208,0,{"$f":"SUM(L121:L121)","v":495},0,0,0,0,0]
["En caso de requerir alguna precisión o aclaración, describa brevemente: "]
["MATERIALES EN ALMACEN, FALTA  ENTREGA A LOS SERVICIOS BENEFICIARIOS"]

{"sheet":"3. Equipamiento específico (AS)","index":10,"n_rows":47,"n_cols":38,"rows_kept":47,"cut":false,"hidden":false,"merged":[[28,37,28,44],[33,0,33,44],[40,33,40,36],[40,37,40,44],[36,33,38,36],[39,33,39,36],[36,37,38,44],[39,37,39,44],[41,33,41,36],[36,22,38,22],[36,23,36,26],[37,23,38,23],[37,24,37,26],[35,22,35,24],[35,25,35,26],[35,27,35,29],[35,30,35,31],[35,7,35,9],[35,10,35,11],[35,12,35,14],[35,15,35,16],[36,27,38,27],[36,28,36,31],[36,2,38,2],[43,33,43,36],[41,37,41,44],[42,37,42,44],[43,37,43,44],[16,33,16,36],[0,32,4,44],[7,0,7,44],[5,0,5,44],[14,33,14,36],[10,33,12,36],[13,33,13,36],[10,37,12,44],[13,37,13,44],[11,8,12,8],[11,9,11,11],[11,13,12,13],[11,14,11,16],[11,18,12,18],[11,19,11,21],[10,7,12,7],[36,32,38,32],[37,28,38,28],[37,29,37,31],[21,0,21,44],[36,3,36,6],[37,3,38,3],[37,4,37,6],[36,12,38,12],[36,13,36,16],[36,17,38,17],[36,18,36,21],[42,33,42,36],[10,8,10,11],[18,0,18,31],[19,0,19,31],[30,0,30,31],[31,0,31,31],[27,33,27,36],[10,0,12,0],[10,1,12,1],[10,2,12,2],[10,3,10,6],[11,3,12,3],[11,4,11,6],[10,27,12,27],[10,28,10,31],[10,32,12,32],[11,28,12,28],[11,29,11,31],[10,12,12,12],[10,13,10,16],[10,17,12,17],[10,18,10,21],[10,22,12,22],[10,23,10,26],[11,23,12,23],[11,24,11,26],[9,2,9,4],[9,5,9,6],[0,0,4,21],[9,17,9,19],[9,20,9,21],[9,22,9,24],[9,25,9,26],[9,27,9,29],[9,30,9,31],[9,7,9,9],[9,10,9,11],[9,12,9,14],[9,15,9,16],[14,37,14,44],[15,37,15,44],[16,37,16,44],[27,0,27,1],[23,2,23,4],[23,5,23,6],[17,0,17,1],[23,17,23,19],[23,20,23,21],[23,22,23,24],[23,25,23,26],[23,27,23,29],[23,30,23,31],[23,7,23,9],[23,10,23,11],[23,12,23,14],[23,15,23,16],[24,27,26,27],[24,28,24,31],[24,2,26,2],[24,3,24,6],[25,3,26,3],[25,4,25,6],[15,33,15,36],[25,23,26,23],[25,28,26,28],[25,29,25,31],[24,12,26,12],[24,13,24,16],[24,17,26,17],[35,2,35,4],[35,5,35,6],[35,17,35,19],[35,20,35,21],[25,8,26,8],[25,9,25,11],[25,13,26,13],[25,14,25,16],[25,18,26,18],[25,19,25,21],[24,7,26,7],[24,8,24,11],[25,24,25,26],[29,0,29,1],[28,0,28,1],[24,0,26,1],[24,37,26,44],[27,37,27,44],[28,33,28,36],[46,0,46,31],[24,32,26,32],[24,18,24,21],[24,22,26,22],[24,33,26,36],[44,0,44,1],[37,8,38,8],[37,9,37,11],[37,13,38,13],[37,14,37,16],[37,18,38,18],[37,19,37,21],[36,7,38,7],[36,8,36,11],[36,0,38,0],[36,1,38,1],[45,0,45,31],[24,23,24,26]]}
[null,null,null,null,null,null,null,null,null,null,null,null,null,null,null,null,null,null,null,null,null,null,null,null,null,null,null,null,null,null,null,null,"Subsecretaría de Educación Básica\nDirección General de Desarrollo Curricular\nDirección de Fortalecimiento Curricular para la \nFormación Personal y Social en la Educación Básica\nEducación Especial"]
[]
[]
[]
[]
["Componente: 3. Equipamiento específico en beneficio de estudiantes con aptitudes sobresalientes"]
[]
["3.11 Dotar de material didáctico especializado para estudiantes con aptitudes sobresalientes"]
[]
[null,null,"Focalizados USAER",null,null,{"$f":"'Servicios EE 2024'!M21","v":81},null,"Focalizados CAPEP",null,null,{"$f":"'Servicios EE 2024'!N21","v":0},null,"Focalizados CRIE",null,null,{"$f":"'Servicios EE 2024'!O21","v":0},null,"Focalizados UOP",null,null,{"$f":"'Servicios EE 2024'!P21","v":0},null,"Focalizados UAEBH",null,null,{"$f":"'Servicios EE 2024'!Q21","v":0},null,"Focalizados Otro",null,null,{"$f":"'Servicios EE 2024'!R21","v":0}]
["Tipo de materiales\n(seleccione)","Material adquirido","Cantidad a distribuir","USAER",null,null,null,"Cantidad a distribuir","CAPEP",null,null,null,"Cantidad a distribuir","CRIE",null,null,null,"Cantidad a distribuir","UOP",null,null,null,"Cantidad a distribuir","UAEBH",null,null,null,"Cantidad a distribuir","Otro",null,null,null,"Nivel de avance de la acción","En caso de modificación, indique número de oficio",null,null,null,"Describa brevemente el impacto pedagógico que se obtuvo con esta acción"]
[null,null,null,"SEE","Estudiantes",null,null,null,"SEE","Estudiantes",null,null,null,"SEE","Estudiantes",null,null,null,"SEE","Estudiantes",null,null,null,"SEE","Estudiantes",null,null,null,"SEE","Estudiantes"]
[null,null,null,null,"M","H","T",null,null,"M","H","T",null,null,"M","H","T",null,null,"M","H","T",null,null,"M","H","T",null,null,"M","H","T"]
["Otro (especifique)","1 Kit de robótica preescolar",48,16,32,54,{"$f":"SUM(E14,F14)","v":86},0,0,0,0,{"$f":"SUM(J14,K14)","v":0},0,0,0,0,0,0,0,0,0,{"$f":"SUM(T14,U14)","v":0},0,0,0,0,{"$f":"SUM(Y14,Z14)","v":0},0,0,0,0,{"$f":"SUM(AD14,AE14)","v":0},"Materiales adquiridos, falta entrega","N/A",null,null,null,"N/A"]
["Otro (especifique)","Paquete con 6 kit de robótica primaria",37,37,79,94,{"$f":"SUM(E15,F15)","v":173},0,0,0,0,{"$f":"SUM(J15,K15)","v":0},0,0,0,0,{"$f":"SUM(O15,P15)","v":0},0,0,0,0,{"$f":"SUM(T15,U15)","v":0},0,0,0,0,{"$f":"SUM(Y15,Z15)","v":0},0,0,0,0,{"$f":"SUM(AD15,AE15)","v":0},"Materiales adquiridos, falta entrega","N/A",null,null,null,"N/A"]
["Otro (especifique)","1 Kit de robótica secundaria",20,6,19,15,34,0,0,0,0,0,0,0,0,0,0,0,0,0,0,0,0,0,0,0,0,0,0,0,0,0,"Materiales adquiridos, falta entrega","N/A",null,null,null,"N/A"]
["Juegos de estrategia","Paquete:  1 backamon, 1 pictionary, 1 turista mundial, 1 uno, 1 rompecabezas de madera de 24 piezas.",37,37,261,287,548,0,0,0,0,0,0,0,0,0,0,0,0,0,0,0,0,0,0,0,0,0,0,0,0,0,"Materiales adquiridos, falta entrega","N/A",null,null,null,"N/A"]
["Total",null,{"$f":"SUM(C14:C17)","v":142},96,391,450,841,0,0,0,0,0,0,0,0,0,0,0,0,0,0,0,0,0,0,0,0,0,0,0,0,0]
["En caso de requerir alguna precisión o aclaración, describa brevemente: "]
["MATERIALES EN ALMACEN, FALTA PROGRAMACIÓN DE ENTREGA A LOS SERVICIOS BENEFICIARIOS"]
[]
["3.12 Dotar de material bibliográfico para estudiantes con  aptitudes sobresalientes "]
[]
[null,null,"Focalizados USAER",null,null,{"$f":"'Servicios EE 2024'!M21","v":81},null,"Focalizados CAPEP",null,null,{"$f":"'Servicios EE 2024'!N21","v":0},null,"Focalizados CRIE",null,null,{"$f":"'Servicios EE 2024'!O21","v":0},null,"Focalizados UOP",null,null,{"$f":"'Servicios EE 2024'!P21","v":0},null,"Focalizados UAEBH",null,null,{"$f":"'Servicios EE 2024'!Q21","v":0},null,"Focalizados Otro",null,null,{"$f":"'Servicios EE 2024'!R21","v":0}]
["Tipo de libros\n(seleccione)",null,"Cantidad a distribuir","USAER",null,null,null,"Cantidad a distribuir","CAPEP",null,null,null,"Cantidad a distribuir","CRIE",null,null,null,"Cantidad a distribuir","UOP",null,null,null,"Cantidad a distribuir","UAEBH",null,null,null,"Cantidad a distribuir","Otro",null,null,null,"Nivel de avance de la acción","En caso de modificación, indique número de oficio",null,null,null,"Describa brevemente el impacto pedagógico que se obtuvo con esta acción"]
[null,null,null,"SEE","Estudiantes",null,null,null,"SEE","Estudiantes",null,null,null,"SEE","Estudiantes",null,null,null,"SEE","Estudiantes",null,null,null,"SEE","Estudiantes",null,null,null,"SEE","Estudiantes"]
[null,null,null,null,"M","H","T",null,null,"M","H","T",null,null,"M","H","T",null,null,"M","H","T",null,null,"M","H","T",null,null,"M","H","T"]
["Especializados en aptitudes sobresalientes",null,972,81,522,561,{"$f":"SUM(E28,F28)","v":1083},0,0,0,0,{"$f":"SUM(J28,K28)","v":0},0,0,0,0,{"$f":"SUM(O28,P28)","v":0},0,0,0,0,{"$f":"SUM(T28,U28)","v":0},0,0,0,0,{"$f":"SUM(Y28,Z28)","v":0},0,0,0,0,{"$f":"SUM(AD28,AE28)","v":0},"Materiales adquiridos, falta entrega","N/A",null,null,null,"N/A"]
["De literatura infantil",null,120,10,63,66,129,0,0,0,0,{"$f":"SUM(J29,K29)","v":0},0,0,0,0,{"$f":"SUM(O29,P29)","v":0},0,0,0,0,{"$f":"SUM(T29,U29)","v":0},0,0,0,0,{"$f":"SUM(Y29,Z29)","v":0},0,0,0,0,{"$f":"SUM(AD29,AE29)","v":0},"Materiales adquiridos, falta entrega","N/A",null,null,null,"N/A"]
["Total",null,{"$f":"SUM(C28:C29)","v":1092},91,585,627,1212,0,0,0,0,0,0,0,0,0,0,0,0,0,0,0,0,0,0,0,0,0,0,0,0,0]
["En caso de requerir alguna precisión o aclaración, describa brevemente: "]
["MATERIALES EN ALMACEN, FALTA PROGRAMACIÓN DE ENTREGA A LOS SERVICIOS BENEFICIARIOS"]
[]
["3.14 Dotar de equipo tecnológico y/o multimedia para estudiantes con aptitudes sobresalientes"]
[]
[null,null,"Focalizados USAER",null,null,{"$f":"'Servicios EE 2024'!M21","v":81},null,"Focalizados CAPEP",null,null,{"$f":"'Servicios EE 2024'!N21","v":0},null,"Focalizados CRIE",null,null,{"$f":"'Servicios EE 2024'!O21","v":0},null,"Focalizados UOP",null,null,{"$f":"'Servicios EE 2024'!P21","v":0},null,"Focalizados UAEBH",null,null,{"$f":"'Servicios EE 2024'!Q21","v":0},null,"Focalizados Otro",null,null,{"$f":"'Servicios EE 2024'!R21","v":0}]
["Tipo de equipo\n(seleccione)","Características generales de los equipos","Cantidad a distribuir","USAER",null,null,null,"Cantidad a distribuir","CAPEP",null,null,null,"Cantidad a distribuir","CRIE",null,null,null,"Cantidad a distribuir","UOP",null,null,null,"Cantidad a distribuir","UAEBH",null,null,null,"Cantidad a distribuir","Otro",null,null,null,"Nivel de avance de la acción","En caso de modificación, indique número de oficio",null,null,null,"Describa brevemente el impacto pedagógico que se obtuvo con esta acción"]
[null,null,null,"SEE","Estudiantes",null,null,null,"SEE","Estudiantes",null,null,null,"SEE","Estudiantes",null,null,null,"SEE","Estudiantes",null,null,null,"SEE","Estudiantes",null,null,null,"SEE","Estudiantes"]
[null,null,null,null,"M","H","T",null,null,"M","H","T",null,null,"M","H","T",null,null,"M","H","T",null,null,"M","H","T",null,null,"M","H","T"]
["Cañón","Proyector lcd, 3400 lúmenes, brillo de proyector, lámpara UHE 210 vatios, tecnología de proyección 3LCD, resolución de proyección XGA (1024 x 768), resolución de contraste 15000:1 dinámico",28,28,148,164,{"$f":"SUM(E40,F40)","v":312},0,0,0,0,{"$f":"SUM(J40,K40)","v":0},0,0,0,0,{"$f":"SUM(O40,P40)","v":0},0,0,0,0,{"$f":"SUM(T40,U40)","v":0},0,0,0,0,{"$f":"SUM(Y40,Z40)","v":0},0,0,0,0,{"$f":"SUM(AD40,AE40)","v":0},"Materiales adquiridos, falta entrega","N/A",null,null,null,"N/A"]
["Equipo de cómputo","Laptop, procesador intel core 15-1235 U 12 th gen (12 MB CACHÉ, 10 core 12 threads 4.40 Ghz turbo). Sistema operativo windows 11 home single en español. Microsoft office profesional 2021 en español. Adaptador de C.A.65 watt. Memoria ram 8 gb DDR4 3200 mhz. pantalla 16 pulgadas fhd (1920 x 1200) 60 hz led antirreflejo. teclado en español, tarjeta inhalámbrica wifi 6E AX211, 2X2, 802.11ax, bluetooth.",13,13,79,96,{"$f":"SUM(E41,F41)","v":175},0,0,0,0,{"$f":"SUM(J41,K41)","v":0},0,0,0,0,{"$f":"SUM(O41,P41)","v":0},0,0,0,0,{"$f":"SUM(T41,U41)","v":0},0,0,0,0,{"$f":"SUM(Y41,Z41)","v":0},0,0,0,0,{"$f":"SUM(AD41,AE41)","v":0},"Materiales adquiridos, falta entrega","N/A",null,null,null,"N/A"]
["Equipo de cómputo","PC escritorio: Intel®️ Core™️ i5 14500T vPro®️ (24MB cache, 14 cores, 20 threads, up to 4.8 GHz)\nWindows 11 Pro, inglés, español, francés y portugués de Brasil\nIntel®️ Graphics\n8 GB: 1 x 8 GB, DDR5\n256 GB, M.2 2230, PCIe NVMe, SSD, Class 35\n23.8 pulgadas pantalla",3,3,2,10,12,0,0,0,0,0,0,0,0,0,0,0,0,0,0,0,0,0,0,0,0,0,0,0,0,0,"Materiales adquiridos, falta entrega","N/A",null,null,null,"N/A"]
["Impresora","multifuncional de inyección de tinta continua, volumen de impresión mensual 500 páginas aproximadamente, velocidad de impresión en negro 10 ppm, velocidad de impresión a color 5 ppm, interface ethernet integrada.",23,23,120,116,236,0,0,0,0,0,0,0,0,0,0,0,0,0,0,0,0,0,0,0,0,0,0,0,0,0,"Materiales adquiridos, falta entrega","N/A",null,null,null,"N/A"]
["Enmicadora","Enmicadora térmica fusiónL ancho 22 cm carta, 3.5 milésimas, dimensiones 14, 2L, x 12,6 w x 41, 4h centímetros.",12,12,51,61,112,0,0,0,0,0,0,0,0,0,0,0,0,0,0,0,0,0,0,0,0,0,0,0,0,0,"Materiales adquiridos, falta entrega","N/A",null,null,null,"N/A"]
["Total",null,{"$f":"SUM(C40:C44)","v":79},79,400,447,847,0,0,0,0,0,0,0,0,0,0,0,0,0,0,0,0,0,0,0,0,0,0,0,0,0]
["En caso de requerir alguna precisión o aclaración, describa brevemente: "]
["MATERIALES EN ALMACEN, FALTA PROGRAMACIÓN DE ENTREGA A LOS SERVICIOS BENEFICIARIOS"]

{"sheet":"Gastos de Operación Local","index":11,"n_rows":16,"n_cols":8,"rows_kept":16,"cut":false,"hidden":false,"merged":[[0,0,4,4],[6,0,6,4],[0,7,4,13],[14,0,14,4],[15,0,15,4]]}
["Subsecretaría de Educación Básica\nDirección General de Desarrollo Curricular\nDirección de Fortalecimiento Curricular para la \nFormación Personal y Social en la Educación Básica\nEducación Especial",null,null,null,null,null,null,"Subsecretaría de Educación Básica\nDirección General de Desarrollo Curricular\nDirección de Fortalecimiento Curricular para la \nFormación Personal y Social en la Educación Básica\nEducación Especial"]
[]
[]
[]
[]
[]
["Gastos de operación local 2024"]
["Tipo","Descripción de las actividades realizadas","Nivel de avance de la acción","Precisión, descripción de los niveles de avance o aclaración","En caso de modificación, indique número de oficio"]
["Planeación","N/A",null,"N/A","N/A"]
["Seguimiento y supervisión","Viáticos, combustible, coffee brake, hospedaje, y alimentación.","En desarrollo","Se han realizado visitas de seguimiento y supervisión de las actividades.","N/A"]
["Evaluación","Aplicación de la evaluación externa de acuerdo al numeral 6.2 de RO","En desarrollo","En proceso de acuerdo a lo estipulado","N/A"]
["Acciones de Contraloría Social","Conformación de comités de contraloría social, asesoría y difusión.","Realizada","Entrega de informe final de contraloría  y entrega de materiales de difusión","N/A"]
["Asistencia a reuniones convocadas por la DGDC","Viáticos y pasajes aereos","Realizada","Asistencia de dos figuras a reunión nacional.","N/A"]
["Distribución de materiales a los SEE focalizados","ADQUISICIÓN DE COMBUSTIBLE PARA LA ENTREGA DE MATERIALES.","En desarrollo","COMBUSTIBLE ADQUIRIDO Y EN RESGUARDO","N/A"]
["En caso de requerir alguna precisión o aclaración, describa brevemente: "]
[" "]

{"sheet":"Autorización 2024","index":12,"n_rows":24,"n_cols":7,"rows_kept":24,"cut":false,"hidden":false,"merged":[[22,0,22,2],[22,3,22,9],[23,0,23,2],[23,3,23,9],[18,0,18,2],[18,3,18,9],[20,0,20,9],[21,0,21,2],[21,3,21,9],[15,0,15,9],[16,0,16,2],[16,3,16,9],[17,0,17,2],[17,3,17,9],[13,3,13,9],[11,0,11,2],[13,0,13,2],[11,3,11,9],[0,0,4,4],[0,6,4,9],[5,0,5,9],[10,0,10,9],[12,0,12,2],[12,3,12,9],[6,1,6,6],[7,2,7,3],[7,4,7,5],[8,2,8,3],[8,4,8,5]]}
[null,null,null,null,null,null,"Subsecretaría de Educación Básica\nDirección General de Desarrollo Curricular\nDirección de Fortalecimiento Curricular para la \nFormación Personal y Social en la Educación Básica"]
[]
[]
[]
[]
["AUTORIZACIÓN DEL INFORME TÉCNICO PEDAGÓGICO 2024"]
[null,"Señale con una \"X\" el trimestre que se autoriza reportar"]
[null,"1er. Trimestre \n(enero a marzo)","2° Trimestre \n(abril a junio)",null,"3er. Trimestre \n(julio a septiembre)",null,"4° Trimestre \n(octubre a diciembre)"]
[null,null,null,null,null,null,"X"]
[]
["Validación de la / de la Persona Coordinadora Local"]
["Nombre ",null,null,"DR. ANTONIO HERRERA MONTES"]
["Cargo",null,null,"ENCARGADO DE LA COORDINACIÓN  PFSEE DURANGO"]
["Firma y sello"]
[]
["Validación de la / del Responsable de Educación Especial subsistema Estatal"]
["Nombre ",null,null,"N/A"]
["Cargo",null,null,"N/A"]
["Firma y sello",null,null,"N/A"]
[]
["Validación de la / del Responsable de Educación Especial subsistema Federal"]
["Nombre ",null,null,"DR. ANTONIO HERRERA MONTES"]
["Cargo",null,null,"ENCARGADO DE LA JEFATURA DE DEPARTAMENTO DE EDUCACIÓN ESPECIAL"]
["Firma y sello"]